Cogmind - Beta 16.1 @@@ ROGUE MODE // 2026.02.27 @ 17:50:07 Player: N.W.L. Result: Establishing Free Derelict Territories! Performance ------------- Evolutions (9) 4500 Regions Visited (41) 8200 Robots Destroyed (950) 4750 Value Destroyed (40987) 40987 Prototype IDs (107) 2140 Alien Tech Used (0) 0 Bonus (48345) 48345 TOTAL SCORE: 108922 Bonus ------- Triggered High Security 500 High Alert Combat Kills 10425 Follower Combat Kills 2433 Hunted by Unchained 1000 Destroyed Unchained 1000 Entered Garrisons 1000 Aligned with FarCom 300 Met Data Miner 300 Met Imprinter 300 Acquired ECA 300 Met Warlord at Base 500 MAIN.C Attacked Warlord 500 Warlord Defense Kills 1298 Met Warlord at Research 2000 Invited to Help at Command 2000 Destroyed MAIN.C Guards 500 Met MAIN.C 5000 Destroyed MAIN.C Shell 5000 Destroyed MAIN.C 10000 Met Warlord at Command 2000 Win 3000 Friendly Fire -1011 Cogmind --------- Core Integrity 1538/1600 Matter 214/300 Energy 108/850 System Corruption 4% Temperature Cool (0) Movement Treading (141) Location Free Derelict Territories Parts ------- > --- POWER (3) -------- Reinforced Quantum Reactor Improved Quantum Reactor Improved Quantum Reactor > --- PROPULSION (6) --- Biometal Heavy Treads Biometal Heavy Treads Experimental Biometal Heavy Treads > --- UTILITY (13) ----- Coolant Network Huge Storage Unit Experimental Optical Array Experimental Core Analyzer Experimental Core Analyzer Advanced Kinecellerator Quantum Capacitor (fused) Centrium Light Armor Plating Centrium Light Armor Plating Advanced Thermal Shield Advanced Remote Force Field > --- WEAPON (3) ------- Compact HERF Cannon Enhanced Nova Cannon Multirail > --- INVENTORY (25) --- Quantum Reactor Quantum Reactor Centrium Heavy Treads Advanced Heavy Siege Treads Advanced Heavy Siege Treads Experimental Energy Well (600) Advanced Matter Compressor (400) Precision Matter Filter Advanced Particle Charger Advanced Transmission Jammer Centrium Light Armor Plating Centrium Light Armor Plating Centrium Medium Armor Plating Advanced Point Defense System Vortex Driver (30) Vortex Driver (19) Enhanced Nova Cannon DW-4LL's Megashotty Graviton Cannon Fusion Bomb Launcher Peak State ------------ > --- POWER ------------ Reinforced Quantum Reactor Improved Quantum Reactor Improved Quantum Reactor > --- PROPULSION ------- Biometal Heavy Treads Biometal Heavy Treads Experimental Biometal Heavy Treads > --- UTILITY ---------- Coolant Network Huge Storage Unit Experimental Optical Array Experimental Core Analyzer Experimental Core Analyzer Advanced Particle Charger Quantum Capacitor Centrium Light Armor Plating Centrium Light Armor Plating Advanced Remote Force Field Advanced Point Defense System > --- WEAPON ----------- Enhanced Nova Cannon Multirail Graviton Cannon > --- INVENTORY -------- Quantum Reactor Quantum Reactor Centrium Heavy Treads Advanced Heavy Siege Treads Advanced Heavy Siege Treads Experimental Energy Well Advanced Matter Compressor Precision Matter Filter Advanced Kinecellerator Advanced Transmission Jammer Centrium Light Armor Plating Centrium Light Armor Plating Advanced Thermal Shield Compact HERF Cannon Vortex Driver Vortex Driver Enhanced Nova Cannon DW-4LL's Megashotty Fusion Bomb Launcher [Rating: 238] Favorites ----------- Power Heavy Ion Engine Engine Heavy Ion Engine Power Core Neutrino Core Reactor Antimatter Reactor Propulsion Light Treads Treads Light Treads Leg Flexi-carbon Leg Wheel Armored Huge Wheel Utility Cargo Storage Unit Device Shield Generator Storage Cargo Storage Unit Processor Core Analyzer Hackware Hacking Suite Protection Centrium Medium Armor Plating Weapon Heavy Plasma Cannon Energy Gun Beamcaster Energy Cannon Heavy Plasma Cannon Ballistic Gun Heavy Machine Gun Ballistic Cannon Heavy Gauss Cannon Launcher Missile Launcher Special Weapon RU-N14's Throwing Claymores Impact Weapon Hammer Slashing Weapon Scythe Piercing Weapon CR-A16's Pointy Stick Special Melee Weapon Improved Datajack Build | -11 -10 -10 -9 -9 -9 -8 -8 -8 -8 -8 -8 -7 -7 -7 -7 -7 -7 -7 -7 -6 -6 -6 -6 -6 -6 -6 -6 -6 -6 -6 -5 -5 -5 -5 -5 -4 -4 -3 -2 -1 -1 ------- Run | Yrd Mat Min Mat Min Exi Min Mat Gar Mat Gar Mat Fac Was Fac Gar Fac Low Low Dat Pro Fac Was Fac Gar Fac Gar Fac Low Low Zio Pro Fac Upp Upp War Pro Fac Res Res Acc Com Slots Evolved 18 | . . . 2 . . . 2 . . . . 2 . . . . . . . . 2 . . . . . . . . . . 2 . . . . 2 2 2 2 . Power 2 | . . . . . . . . . . . . . . . . . . . . . . . . . . . . . . . . 1 . . . . 1 . . . . Propulsion 4 | . . . 1 . . . . . . . . . . . . . . . . . 1 . . . . . . . . . . . . . . . . 2 . . . Utility 11 | . . . 1 . . . 2 . . . . 1 . . . . . . . . 1 . . . . . . . . . . 1 . . . . 1 . 2 2 . Weapon 1 | . . . . . . . . . . . . 1 . . . . . . . . . . . . . . . . . . . . . . . . . . . . . Parts Attached 576 | 6 13 3 23 5 . 1 20 24 11 14 13 2 6 17 8 19 9 11 . 1 44 23 10 32 10 11 18 5 1 11 8 31 6 4 15 7 29 8 62 24 11 Power 48 | 1 1 . 2 1 . . 1 1 1 1 1 . 1 . 2 2 1 . . . . 1 . 2 . 1 2 1 . . 2 4 1 1 1 1 4 2 4 2 3 Engine 16 | 1 1 . 2 1 . . 1 1 1 1 1 . . . . 1 1 . . . . . . 1 . . 1 . . . 1 1 . . . . . . . . . Core 10 | . . . . . . . . . . . . . . . . 1 . . . . . . . 1 . . 1 . . . 1 1 1 1 1 . 2 . . . . Reactor 22 | . . . . . . . . . . . . . 1 . 2 . . . . . . 1 . . . 1 . 1 . . . 2 . . . 1 2 2 4 2 3 Propulsion 104 | 2 1 . 7 . . . 6 16 6 3 7 . . 2 4 1 1 . . . 1 2 . 1 . 4 2 1 . . 2 11 . 1 2 2 4 2 9 4 . Treads 86 | 2 1 . 7 . . . 6 16 6 3 7 . . 2 4 1 1 . . . 1 2 . 1 . 4 2 1 . . 1 1 . . 1 1 . 2 9 4 . Leg 1 | . . . . . . . . . . . . . . . . . . . . . . . . . . . . . . . 1 . . . . . . . . . . Wheel 17 | . . . . . . . . . . . . . . . . . . . . . . . . . . . . . . . . 10 . 1 1 1 4 . . . . Hover . | . . . . . . . . . . . . . . . . . . . . . . . . . . . . . . . . . . . . . . . . . . Flight . | . . . . . . . . . . . . . . . . . . . . . . . . . . . . . . . . . . . . . . . . . . Utility 298 | 1 5 . 7 3 . 1 11 4 3 8 3 1 4 8 2 10 6 9 . 1 29 10 6 23 5 4 12 2 1 8 3 13 5 1 7 3 13 3 42 15 6 Device 155 | . 3 . 5 1 . . 4 3 2 4 . . 3 4 . 3 2 4 . 1 18 7 2 14 3 2 5 2 . 5 3 6 3 . 3 1 11 2 14 11 4 Storage 17 | 1 1 . 1 1 . . . . . . . . . . 2 . . . . . . . . 2 . . . . . . . 1 2 . 1 . . . 4 1 . Processor 40 | . 1 . . . . . . . . . . . . 1 . 2 1 1 . . 5 . 3 2 . . 4 . 1 1 . 2 . . 1 1 . 1 10 1 2 Hackware 11 | . . . . . . . 2 . . 1 . . . 1 . . . . . . 2 . . . . . 2 . . . . 1 . . . 1 . . 1 . . Protection 75 | . . . 1 1 . 1 5 1 1 3 3 1 1 2 . 5 3 4 . . 4 3 1 5 2 2 1 . . 2 . 3 . 1 2 . 2 . 13 2 . Artifact . | . . . . . . . . . . . . . . . . . . . . . . . . . . . . . . . . . . . . . . . . . . Weapon 126 | 2 6 3 7 1 . . 2 3 1 2 2 1 1 7 . 6 1 2 . . 14 10 4 6 5 2 2 1 . 3 1 3 . 1 5 1 8 1 7 3 2 Energy Gun 30 | . 3 2 . 1 . . 1 1 1 . 1 . . 1 . 2 . 2 . . 2 5 . . 1 1 . . . . . . . . 4 . 1 1 . . . Energy Cannon 36 | . . . 3 . . . 1 1 . . . . . 4 . 1 1 . . . 5 . 2 1 3 1 2 . . . . 2 . . 1 1 4 . 2 1 . Ballistic Gun 18 | 2 . . 2 . . . . 1 . 2 . . . 1 . 1 . . . . 5 . . . 1 . . . . . . . . 1 . . . . . 1 1 Ballistic Cannon 22 | . 1 . . . . . . . . . . . 1 . . 1 . . . . 1 4 1 4 . . . . . . 1 . . . . . 2 . 4 1 1 Launcher 12 | . . 1 1 . . . . . . . 1 . . 1 . 1 . . . . . . 1 1 . . . 1 . 1 . 1 . . . . 1 . 1 . . Special Weapon 1 | . . . . . . . . . . . . . . . . . . . . . . . . . . . . . . 1 . . . . . . . . . . . Impact Weapon 1 | . 1 . . . . . . . . . . . . . . . . . . . . . . . . . . . . . . . . . . . . . . . . Slashing Weapon 3 | . . . 1 . . . . . . . . . . . . . . . . . 1 1 . . . . . . . . . . . . . . . . . . . Piercing Weapon 1 | . . . . . . . . . . . . . . . . . . . . . . . . . . . . . . 1 . . . . . . . . . . . Special Melee Weapon 2 | . 1 . . . . . . . . . . 1 . . . . . . . . . . . . . . . . . . . . . . . . . . . . . Unidentified Prototypes 63 | . . . 4 1 . . 1 . 1 . 1 . . 2 . . . 1 . . 3 . . . 5 . 2 . . 2 . 8 . . 4 2 4 . 16 4 2 Corrupted Parts 5 | . . . . . . . . . . . 1 . . . . . . . . . . . . . . . . . . . . 2 1 . 1 . . . . . . System Corruption 23 | . . . . . . . . . . . 9 . . . . . . . . . . . . . . . . . . . . 3 1 . 10 . . . . . . Parts Lost 102 | . . . 2 . . . 2 6 1 6 . . 1 1 . 7 . 2 . 5 . 10 . 3 1 1 . 2 . . 4 21 3 . 2 2 6 . 11 1 2 Power 10 | . . . . . . . . 1 . 1 . . . . . 1 . . . . . 1 . . . . . . . . 1 2 1 . . . 2 . . . . Propulsion 29 | . . . . . . . . 1 . 1 . . . . . . . . . 1 . 3 . 1 . 1 . 1 . . 2 11 1 . 2 1 1 . 2 . . Utility 34 | . . . 2 . . . 2 2 . 3 . . 1 . . 2 . 1 . 3 . 2 . 1 . . . . . . 1 2 . . . . 3 . 6 1 2 Weapon 29 | . . . . . . . . 2 1 1 . . . 1 . 4 . 1 . 1 . 4 . 1 1 . . 1 . . . 6 1 . . 1 . . 3 . . Highest Loss Streak 10 | . . . 1 . . . 1 3 1 5 . . 1 1 . 4 . 2 . 5 . 10 . 1 1 1 . 2 . . 2 4 1 . 2 2 2 . 6 1 2 To Critical Strikes 6 | . . . . . . . . . . . . . 1 . . . . . . . . 5 . . . . . . . . . . . . . . . . . . . Average Backups 22 | 3 13 15 19 20 23 23 22 22 22 21 20 21 22 20 22 22 22 22 23 20 23 20 24 25 25 25 24 23 23 23 23 23 25 28 27 27 26 27 19 20 20 Power 1 | . . . 1 1 2 2 1 . 1 1 . 1 1 1 1 1 1 1 1 1 1 1 . 1 1 1 1 . . . . . . . 1 2 1 1 1 1 1 Propulsion 2 | 1 1 2 2 2 2 2 2 3 4 4 2 2 2 2 2 4 4 4 4 4 3 1 2 . . . 1 1 1 2 1 1 3 3 2 3 4 3 2 3 3 Utility 11 | . 6 10 10 11 12 12 11 10 11 9 10 12 12 10 10 9 13 14 14 12 11 11 13 14 14 14 13 13 12 13 13 13 17 18 17 15 16 18 10 11 9 Weapon 5 | 1 3 2 4 5 6 6 7 7 5 6 6 5 5 5 6 5 2 1 2 1 4 3 6 6 7 7 7 6 6 7 7 5 3 5 5 5 4 5 5 5 6 Tool/Special . | . . . . . . . . . . . . . . . . . . . . . . . . . . . . . . . . . . . . . . . . . . Unused Backups 64 | . 8 2 2 . 3 . . . . . 2 . 1 2 2 1 . 3 . . . 2 . 3 1 1 2 . . 1 . . . . 6 1 1 . 14 1 5 Power 11 | . 2 . . . 2 . . . . . 1 . . . 1 . . . . . . . . 1 . . . . . . . . . . 1 1 . . 2 . . Propulsion 7 | . 2 . . . . . . . . . . . . . 1 . . . . . . . . 1 . . . . . . . . . . 1 . . . . . 2 Utility 32 | . 1 1 2 . . . . . . . 1 . 1 2 . 1 . 3 . . . 2 . 1 1 1 2 . . . . . . . 2 . 1 . 8 1 1 Weapon 14 | . 3 1 . . 1 . . . . . . . . . . . . . . . . . . . . . . . . 1 . . . . 2 . . . 4 . 2 Tool/Special . | . . . . . . . . . . . . . . . . . . . . . . . . . . . . . . . . . . . . . . . . . . Average Slot Usage (%) 88 | . 99 100 99 100 90 98 99 98 100 96 100 99 84 96 81 79 83 83 84 77 77 64 79 78 79 84 92 90 93 92 90 77 63 77 82 77 85 87 78 79 80 Engine 4 | . 14 14 11 11 11 11 9 8 9 9 9 7 4 . . 2 7 7 7 7 6 2 . . . . . . . . . . . . . . . . . . . Core 1 | . . . . . . . . . . . . . . . . 1 . . . . . . . 3 6 1 . . . . . 4 . 9 11 10 9 1 . . . Reactor 2 | . . . . . . . . . . . . . 2 7 7 3 . . . . . 3 6 2 . 4 5 5 6 6 4 5 2 . . . 4 7 9 12 12 Treads 19 | . 27 28 32 33 33 33 27 26 27 26 27 23 23 23 21 15 15 15 15 9 13 12 13 13 13 17 26 24 26 26 24 4 . . . 1 . 7 15 11 12 Wheel 1 | . . . . . . . . . . . . . . . . . . . . . . . . . . . . . . . . 10 12 16 16 9 13 19 . . . Device 15 | . 12 14 21 12 11 11 17 15 21 17 18 15 16 13 5 4 12 10 7 8 13 11 18 13 19 19 20 20 19 12 13 15 15 16 15 18 12 11 15 18 17 Storage 7 | . 14 14 11 11 11 11 9 9 9 9 9 7 7 7 7 7 7 7 7 7 6 5 6 6 6 6 6 6 6 6 6 5 5 5 5 5 5 4 3 4 4 Processor 5 | . . . . . . . . . . . . . . 2 7 9 13 15 15 2 1 . 4 6 6 6 7 13 13 20 18 6 5 5 5 5 10 9 11 12 12 Hackware 2 | . . . . . . . 9 6 . 3 9 7 7 10 15 8 . . . . 1 . . . . . . . . . . . . . . . 5 4 3 . . Protection 6 | . . . . 9 11 11 9 13 14 11 9 14 10 10 6 6 3 3 7 18 12 8 8 11 6 6 4 . . . . 4 3 5 7 4 7 5 5 8 10 Energy Gun 4 | . 10 13 5 3 1 16 15 7 5 1 1 7 1 4 . 9 7 1 . 6 4 10 . . . . . . . . . . . . 2 5 1 3 2 . . Energy Cannon 6 | . . . 11 11 1 . . 5 11 3 5 . . 10 . 1 10 14 15 4 6 . 2 5 12 9 15 15 6 2 7 6 5 5 3 5 8 . 3 5 7 Ballistic Gun 1 | . 10 . . . . . . 4 . 12 10 11 2 1 . 1 . . . . 7 . . . 3 . . . . . 1 . . 3 1 . . . . . 2 Ballistic Cannon 3 | . 2 . . . . . . . . . . . 5 1 5 3 3 5 7 5 . 3 16 12 3 8 2 3 12 6 8 3 . . . . 3 9 4 6 2 Launcher 1 | . . . 4 6 . 2 . . 1 . . . . . . 2 . . . . . . . . . . . . . . . . . . 3 2 2 . . . . Peak Build Rating 238 | 6 11 14 24 25 26 31 40 40 39 38 41 46 67 70 83 83 72 70 69 69 93 95 90 97 100 102 87 93 93 88 92 111 94 103 108 116 135 141 217 233 238 Average Rating 75 | 5 9 12 21 21 22 28 37 35 36 35 36 45 60 54 66 66 66 65 69 64 87 72 85 86 97 90 80 88 91 84 87 94 84 97 104 109 120 134 197 228 232 On Entrance 71 | . 6 11 14 21 25 23 31 40 34 38 36 37 46 51 51 83 62 63 69 69 65 93 86 84 93 100 84 85 87 88 85 87 55 88 101 106 106 111 138 216 229 Avg Prop Armor Cover (%) 9 | . . . . . . . . . . . . . . . . . . . . . . 36 . . . . . 6 . . 4 3 . . 5 6 . 8 12 . . Naked Turns 1 | . . . . . . . . . . . . . . . . . . . . . . 1 . . . . . . . . . . . . . . . . . . . Heaviest Build 258 | 13 33 35 64 106 106 105 118 121 126 119 110 112 170 170 234 216 187 196 177 202 212 212 192 220 213 212 205 194 201 189 203 242 196 213 226 225 258 238 245 188 222 Greatest Support 245 | 40 40 40 60 60 60 60 60 60 63 60 60 60 60 60 95 95 95 95 95 95 150 150 150 150 145 145 116 118 116 116 116 126 54 60 60 56 56 52 245 245 235 Greatest Overweight (x) 20 | . 1 . 1 1 1 1 1 2 2 1 1 1 2 2 3 2 1 2 1 2 1 1 1 1 1 4 2 2 1 1 2 20 4 4 13 7 20 4 5 1 . Average Overweight (x) 1 | . . . . 1 1 1 1 1 1 1 1 1 1 1 1 1 1 1 1 1 1 . 1 1 1 1 1 1 1 1 1 4 3 3 3 4 3 3 . . . Largest Inventory Capacity 30 | 8 15 15 20 25 25 25 25 25 25 25 25 25 25 25 30 30 30 30 30 30 30 30 30 30 30 30 30 30 30 30 30 30 30 30 30 30 30 30 30 25 25 Average Capacity 25 | 7 14 15 19 20 25 25 25 25 25 25 25 25 25 25 25 30 30 30 30 30 30 28 30 30 30 30 30 30 30 30 30 30 30 30 30 30 30 30 23 25 25 Most Carried 30 | 7 15 15 20 23 25 25 25 25 25 25 25 25 25 25 30 30 30 30 30 30 30 30 30 30 30 30 30 30 30 30 30 30 30 30 30 30 30 30 30 25 25 Average Carried 25 | 4 13 14 19 20 24 24 24 24 24 23 24 23 23 24 25 29 29 29 30 27 29 24 29 29 29 29 29 29 29 29 29 28 27 29 29 29 29 29 22 24 24 Final Capacity 30 | 8 15 15 20 25 25 25 25 25 25 25 25 25 25 25 30 30 30 30 30 30 30 30 30 30 30 30 30 30 30 30 30 30 30 30 30 30 30 30 25 25 25 Final Carried 30 | 7 15 15 20 23 25 25 25 25 25 25 25 24 25 25 30 26 30 30 30 29 30 30 30 30 30 30 30 28 30 30 29 30 30 30 30 30 30 30 25 25 23 Class Distribution -------------------- 21% | Hauler-Tank 19% | Scavenger-Mutant 16% | Mutant 12% | Hauler-Mutant 9% | Scavenger-Tank 7% | Hauler-Skirmisher 3% | Scavenger-Skirmisher Dominant Class ---------------- Mutant | -10/Materials Mutant | -10/Mines Mutant | -9/Materials Mutant | -9/Mines Mutant | -9/Exiles Scavenger-Mutant | -8/Mines Scavenger-Mutant | -8/Materials Scavenger-Mutant | -8/Garrison Scavenger-Mutant | -8/Materials Scavenger-Mutant | -8/Garrison Scavenger-Mutant | -8/Materials Scavenger-Tank | -7/Factory Scavenger-Tank | -7/Waste Scavenger-Tank | -7/Factory Scavenger-Tank | -7/Garrison Hauler-Tank | -7/Factory Hauler-Skirmisher | -7/Lower Caves Hauler-Tank | -7/Lower Caves Hauler-Tank | -7/Data Miner Hauler-Mutant | -6/Proximity Caves Hauler-Tank | -6/Factory Hauler-Mutant | -6/Waste Hauler-Tank | -6/Factory Hauler-Tank | -6/Garrison Hauler-Tank | -6/Factory Hauler-Tank | -6/Garrison Scavenger-Skirmisher | -6/Factory Hauler-Skirmisher | -6/Lower Caves Scavenger-Skirmisher | -6/Lower Caves Hauler-Mutant | -6/Zion Hauler-Skirmisher | -5/Proximity Caves Hauler-Mutant | -5/Factory Hauler-Mutant | -5/Upper Caves Hauler-Mutant | -5/Upper Caves Hauler-Mutant | -5/Warlord Hauler-Tank | -4/Proximity Caves Hauler-Tank | -4/Factory Hauler-Skirmisher | -3/Research Hacker-Skirmisher | -2/Research Scavenger-Tank | -1/Access Scavenger-Tank | -1/Command Resources | -11 -10 -10 -9 -9 -9 -8 -8 -8 -8 -8 -8 -7 -7 -7 -7 -7 -7 -7 -7 -6 -6 -6 -6 -6 -6 -6 -6 -6 -6 -6 -5 -5 -5 -5 -5 -4 -4 -3 -2 -1 -1 ----------- Run | Yrd Mat Min Mat Min Exi Min Mat Gar Mat Gar Mat Fac Was Fac Gar Fac Low Low Dat Pro Fac Was Fac Gar Fac Gar Fac Low Low Zio Pro Fac Upp Upp War Pro Fac Res Res Acc Com Matter Collected 27825 | 304 1123 151 1249 314 . 298 540 871 580 975 693 30 327 655 702 1612 442 596 . 270 1354 443 689 1931 285 1102 807 502 346 208 515 2019 507 304 410 488 986 210 2148 599 240 Remotely 1941 | . . . 170 . . . . . . 164 . . . . . 719 . . . . . . . 145 . . 73 . . . 43 607 . . . . . . . 20 . Salvage Created 41573 | 86 1106 324 3263 111 . 329 1724 1181 1463 1020 964 283 768 1007 1549 1922 259 519 . 448 3035 134 360 1500 539 924 1112 492 546 . 757 3853 133 380 648 1416 1582 247 1888 2385 1316 Parts 1809 | 8 76 24 207 18 . 15 90 80 69 51 59 18 3 45 63 69 11 15 . 13 110 8 12 60 24 53 43 17 12 . 15 138 10 6 19 35 87 16 66 88 56 Haulers Intercepted 41 | . 2 . 5 . . . 5 . 4 . 2 . . 1 . 1 . 1 . . 6 . 1 . 1 . 2 . . . . 2 . . . . 2 . 1 5 . Recyclers Shooed 33 | . 3 . 5 . . . . . 3 . . 1 . 1 . 1 . . . . 5 . 1 . . . 1 . . . . 6 . . . . 2 . . 2 2 Parts Field Recycled . | . . . . . . . . . . . . . . . . . . . . . . . . . . . . . . . . . . . . . . . . . . Retrieved Matter . | . . . . . . . . . . . . . . . . . . . . . . . . . . . . . . . . . . . . . . . . . . Parts Self-Destructed 112 | . . . . . . . . . . . . . . . . . 13 21 . 12 . . . . . . . 13 9 . 9 . 11 2 . 22 . . . . . Prevented 24 | . . . . . . . . . . . . . . . . . . . . . . . . . . . . . . . . . 8 . . 16 . . . . . Parts Restored . | . . . . . . . . . . . . . . . . . . . . . . . . . . . . . . . . . . . . . . . . . . Kills | -11 -10 -10 -9 -9 -9 -8 -8 -8 -8 -8 -8 -7 -7 -7 -7 -7 -7 -7 -7 -6 -6 -6 -6 -6 -6 -6 -6 -6 -6 -6 -5 -5 -5 -5 -5 -4 -4 -3 -2 -1 -1 ------- Run | Yrd Mat Min Mat Min Exi Min Mat Gar Mat Gar Mat Fac Was Fac Gar Fac Low Low Dat Pro Fac Was Fac Gar Fac Gar Fac Low Low Zio Pro Fac Upp Upp War Pro Fac Res Res Acc Com Combat Hostiles Destroyed 654 | . 15 5 42 16 . 6 25 32 29 25 21 4 4 16 24 56 5 8 . 4 19 . 4 40 8 23 12 13 6 . 19 63 5 1 10 14 20 1 38 12 9 Melee 6 | . . . . . . . 1 . 2 . . . . 1 . . . . . . . . . . . 2 . . . . . . . . . . . . . . . Guns 131 | . 10 1 8 . . 1 18 21 1 17 9 1 . 3 . 13 2 1 . 4 12 . . . 1 . . . . . . 1 . 1 3 3 . . . . . Cannons 268 | . 5 . 11 . . . . 7 13 3 6 . 4 12 22 8 3 5 . . 7 . 1 29 6 19 11 11 6 . 10 26 1 . . 1 9 . 16 9 7 AOE 213 | . . 3 23 16 . 5 6 3 13 5 6 3 . . 2 34 . . . . . . 3 8 . 1 . 2 . . 9 30 4 . 5 6 8 . 18 . . Classes Destroyed 31 | 2 8 . 4 1 . . 1 2 . 1 . 1 1 . . 1 . 1 . . . . . . . 1 . 1 1 . . . 1 . 1 1 . . 1 . 1 Worker 47 | . 3 . 7 1 . . 2 . 2 . 1 4 . . . 3 . . . . 2 . 1 . 1 . 1 . . . . 10 . . . . 1 3 2 1 2 Builder 56 | . 5 5 17 1 . . 1 . 2 . . 2 . 2 . 1 . . . . 5 . . . . . . . . . . 7 . . . . 5 3 . . . Tunneler 15 | 2 1 4 2 . . . . . 1 . . . . 1 . . . . . . 1 . 1 . . . 1 . . . . 1 . . . . . . . . . Hauler 41 | . 2 . 5 . . . 5 . 4 . 2 . . 1 . 1 . 1 . . 6 . 1 . 1 . 2 . . . . 2 . . . . 2 . 1 5 . Recycler 70 | 1 5 1 14 1 . 3 2 . 4 . . . . 4 . 2 . . . . 10 . 1 . . . 2 . . . . 8 . . . . 3 . 1 6 2 Minesweeper 1 | . . . . . . . . . . . . . . . . . . . . . . . . . . . . . . . . . 1 . . . . . . . . Mechanic 15 | . 1 . 1 . . . 1 . 1 . 1 . . . . 3 . . . . 1 . 1 . . . . . . . . 2 . . . . 1 . 2 . . Operator 19 | . 2 . 2 . . . . . . . 1 . . 1 . . . . . . 1 . . . . . 3 . . . . 2 . . . . 1 . 2 1 3 Drone 3 | . . . . . . . . . . . . . . . . . . . . . . . . . . . . . . . . . . . . 2 . . 1 . . Watcher 33 | . 3 . 3 . . . 5 . 3 . 2 . . 2 . 1 . . . . 4 . . . . . 1 . . . . 2 . . . . 2 1 . 2 2 Swarmer 118 | . 3 3 . 8 . . 4 10 6 4 4 . . 3 3 3 . . . 3 . . 3 8 . 4 2 3 . . 5 14 4 . . 2 4 . 15 . . Cutter 5 | . . . . . . . . 3 . . . . . . . . . . . . . . . . . . . . . . . 2 . . . . . . . . . Saboteur 4 | . . . . . . . . . . . . . . . . . . . . . . . . . . 2 . . . . . 2 . . . . . . . . . Grunt 260 | . 12 2 31 . . 6 14 3 14 11 7 3 . 8 15 29 2 5 . . 4 . . 14 4 9 3 6 3 . 10 21 . . 6 7 . . 5 4 2 Brawler 21 | . . . 2 . . . . 1 . 1 3 . . . . 5 1 1 . . . . . . 1 2 . . 1 . 1 1 . . 1 . . . . . . Duelist 21 | . . . 2 . . . . 1 5 1 1 . . . . 4 . . . . . . . 2 . 1 . 1 . . 1 2 . . . . . . . . . Protector 10 | . . . 3 . . . . . 1 1 1 . . . . 2 . . . . . . . . . . . . . . 1 1 . . . . . . . . . Sentry 59 | . . . 5 . . . 5 9 3 4 5 . . 2 2 1 . 1 . . 2 . . 8 1 . 1 1 1 . 1 . . 1 . 1 3 1 . 1 . Demolisher 4 | . . . . . . . . . . 1 . . . . . . . . . . . . . 1 . . . . . . . . . . 1 . . . 1 . . Specialist 8 | . . . . . . . 2 . . . . . . . . 2 . . . . . . . . . . . . . . . 3 . . 1 . . . . . . Hunter 37 | . . . . . . . . . . . . 1 . . 3 3 2 . . 1 4 . . 3 1 1 2 . . . . 3 1 . . 2 4 . 4 2 . Programmer 73 | . . . . . . . . 5 . 2 . . 2 3 1 5 . . . . 9 . 1 2 1 2 4 1 1 . . 14 . . . . 9 . 2 4 5 Heavy 2 | . . . . . . . . . . . . . . . . 2 . . . . . . . . . . . . . . . . . . . . . . . . . Behemoth 7 | . . . . . . . . . . . . . . . . . . 1 . 1 . . . 2 . 2 . . . . . . . . . . . . . . 1 Compactor 4 | . . . . . . . . . . . . . 4 . . . . . . . . . . . . . . . . . . . . . . . . . . . . Striker 9 | . . . . . . . . . . . . . . . . . . . . . . . . . . . . . . . . . . . 1 . . . 8 . . Executioner 2 | . . . . . . . . . . . . . . . . . . . . . . . . . . . . . . . . . . . . . . . 2 . . Decomposer 1 | . . . . . . . . . . . . . . . . . 1 . . . . . . . . . . . . . . . . . . . . . . . . Packrat 3 | . . . . . . . . . . . . . . . . . . . . . . . . . . . . . . . . . . 3 . . . . . . . Samaritan 7 | . . . . . . . . . . . . . . . . . . . . . . . . . . . . . 3 . 3 . . 1 . . . . . . . Assembled 8 | . . . . 8 . . . . . . . . . . . . . . . . . . . . . . . . . . . . . . . . . . . . . Savage 1 | . . . . . . . . . . . . . . . . . . . . . . . . 1 . . . . . . . . . . . . . . . . . Martyr 2 | . . . . . . . . . . . . . . . . . . . . . . 2 . . . . . . . . . . . . . . . . . . . Mutant 1 | . . . . . . . . . . . . . . . . . . . . . . . . . . . . 1 . . . . . . . . . . . . . Troll 1 | . . . . . . . . . . . . . . . . . . . . . . . . . . . . . . . . . . . . . . . . . 1 Best Kill Streak 17 | 3 4 4 5 9 . 3 4 6 7 4 5 6 2 5 3 11 1 4 . 3 4 . 3 4 3 5 3 4 4 . 10 17 4 1 7 5 8 2 6 5 4 Combat Bots Only 14 | . 4 3 5 8 . 3 4 6 6 4 5 3 2 3 3 11 1 4 . 3 2 . 3 4 3 5 3 4 4 . 10 14 4 1 7 5 6 1 6 3 2 Max Kills in Single Turn 5 | 1 1 2 4 3 . 3 3 2 3 2 2 2 1 1 2 4 1 1 . 1 2 1 3 2 2 1 2 1 1 . 4 5 2 1 2 2 4 1 4 1 2 Gunslinging 1 | . . . . . . . . 1 . . . . . . . . . . . . . . . . . . . . . . . . . . . . . . . . . Exploded 4 | . . 2 3 3 . 3 3 2 2 2 2 2 . . 2 4 . . . . . . 3 2 . 1 . 1 . . 4 4 2 . 2 1 4 . 3 . . Melee 1 | . . . . . . . 1 . 1 . . . . 1 . . . . . . . . . . . 1 . . . . . . . . . . . . . . . Uniques/NPCs Destroyed 1 | . . . . . . . . . . . . . . . . . . . . . . . . . . . . . . . . . . . . . . . . 1 . DW-4LL (-1/Access) Combat | -11 -10 -10 -9 -9 -9 -8 -8 -8 -8 -8 -8 -7 -7 -7 -7 -7 -7 -7 -7 -6 -6 -6 -6 -6 -6 -6 -6 -6 -6 -6 -5 -5 -5 -5 -5 -4 -4 -3 -2 -1 -1 -------- Run | Yrd Mat Min Mat Min Exi Min Mat Gar Mat Gar Mat Fac Was Fac Gar Fac Low Low Dat Pro Fac Was Fac Gar Fac Gar Fac Low Low Zio Pro Fac Upp Upp War Pro Fac Res Res Acc Com Hostile Shots Fired 2705 | . 50 17 40 25 . 7 123 145 107 99 66 10 1 93 35 153 30 75 . 54 143 17 21 267 21 58 60 76 11 . 93 304 23 2 36 72 147 4 136 32 52 Missed 802 | . 14 3 19 8 . 4 37 36 29 33 17 4 . 28 10 58 9 32 . 15 42 . 12 76 8 13 13 28 4 . 34 84 6 1 10 21 35 . 33 12 14 Intercepted 3 | . . . . . . . . . . . . . . . . . . . . . . . . . . . . . . . . . . . . . . . . . 3 Hits 1903 | . 36 14 21 17 . 3 86 109 78 66 49 6 1 65 25 95 21 43 . 39 101 17 9 191 13 45 47 48 7 . 59 220 17 1 26 51 112 4 103 20 38 Melee 78 | . . . 1 . . . . 20 4 3 . . 1 . . 2 . . . . . 17 . . . 2 . 1 . . 1 4 . . . . . . 22 . . Projectile 1825 | . 36 14 20 17 . 3 86 89 74 63 49 6 . 65 25 93 21 43 . 39 101 . 9 191 13 43 47 47 7 . 58 216 17 1 26 51 112 4 81 20 38 AOE 18 | . . . . . . . . 2 1 5 . . . . . 1 . . . . . . 1 4 . . . . . . . 1 . . . . . . . . 3 Critical Strikes 107 | . 1 . . . . . 1 15 5 2 2 . 1 1 2 6 1 . . 1 4 10 . 7 . 2 2 . . . . 15 1 . 2 1 5 . 15 2 3 Actively Blocked 2 | . . . . . . . . . . . . . . . . 2 . . . . . . . . . . . . . . . . . . . . . . . . . Part Disruptions 7 | . . . . . . . . . . . . . . . . . . . . . . . . 1 . . . 1 . . . 1 . . . . 2 . . . 2 Damage Taken 31356 | . 377 122 694 203 . 40 946 1441 1050 961 518 90 34 610 297 1745 287 706 . 883 933 753 138 2289 120 749 541 687 52 . 623 3843 297 45 583 531 2320 146 4364 392 946 Core 3178 | . 97 15 205 33 . . 79 134 139 43 48 13 . 54 11 93 . 29 . 159 29 109 5 36 3 83 32 27 . . 62 457 18 . 134 99 146 22 702 . 62 Absorbed by Shields 4641 | . 47 47 167 77 . 17 114 232 341 292 198 33 13 242 116 . . . . . 389 33 . 300 19 . 97 32 . . 392 160 . . 63 344 362 . 312 . 202 Reduced by Siege Mode 248 | . . . . . . . . . . . . . . . . 24 . . . . . . . 154 . 8 . . . . . 7 . . . . . . 55 . . Redirected to Shielding 11 | . . . . . . . . . . . . . . . . . . . . . . . . . . 11 . . . . . . . . . . . . . . . Ignored by Resistances 1855 | . . . . . . . 127 79 30 8 . . . . . 111 28 50 . 105 197 29 . 26 . . 25 . . . . 897 . . . . 8 . . 100 35 Regen/Repaired (Parts) 2122 | . 55 . 75 . . . . . . . . . . . . . . . . . . 21 182 112 . . . . . . . . . . 1087 . . . 590 . . Core Remaining (%) 61 | 100 . 55 . . . 40 . . . . 19 . . . . . . . . 48 . . . . . . . . . . 54 . . . . 29 87 98 51 . 96 Volleys Fired 2734 | 11 121 25 275 16 . 14 96 128 91 121 88 16 2 35 29 113 21 26 . 29 104 11 29 143 46 64 63 26 35 . 57 195 30 9 53 49 133 42 191 129 68 Largest 3 | 2 2 1 2 1 . 2 2 2 2 2 2 3 1 3 1 3 3 3 . 3 3 3 3 3 3 3 3 3 3 . 3 3 1 1 2 2 3 1 3 1 2 Hottest 301 | 40 130 75 150 75 . 150 150 150 140 140 140 128 65 240 80 240 240 240 . 240 300 300 170 265 265 285 285 225 207 . 195 246 90 90 180 171 301 94 200 120 120 Shots Fired 4252 | 22 173 25 342 16 . 16 188 209 151 186 151 24 41 117 65 185 36 60 . 46 278 26 52 286 67 118 102 57 47 . 83 294 31 10 54 59 189 42 206 129 69 Gun 1490 | 22 158 23 136 . . 6 182 179 35 147 94 20 1 29 1 86 6 11 . 18 187 14 . . 7 . . . . . 3 20 . 6 39 14 11 17 12 . 6 Cannon 2507 | . 15 . 166 2 . . 3 27 96 31 46 . 40 88 63 55 30 49 . 28 91 12 50 282 60 116 101 54 47 . 75 254 28 4 11 27 161 25 178 129 63 Launcher 250 | . . 2 40 14 . 10 3 3 20 8 11 4 . . 1 44 . . . . . . 2 4 . 2 1 3 . . 3 17 3 . 4 18 17 . 16 . . Special 5 | . . . . . . . . . . . . . . . . . . . . . . . . . . . . . . . 2 3 . . . . . . . . . Kinetic 1295 | 22 99 . . . . . . 69 . 131 83 8 38 45 38 58 11 7 . 5 136 . 31 183 11 52 21 23 18 . 34 74 . 6 . . 34 22 24 1 11 Thermal 2585 | . 74 23 302 2 . 6 185 137 131 47 57 12 3 72 26 83 25 53 . 41 142 23 19 99 56 64 80 31 29 . 43 146 28 4 50 41 138 20 165 98 30 Explosive 211 | . . 2 40 14 . 10 3 3 20 8 11 4 . . 1 44 . . . . . . 2 4 . 2 1 3 . . 5 18 3 . . 2 1 . 10 . . Electromagnetic 150 | . . . . . . . . . . . . . . . . . . . . . . 3 . . . . . . . . 1 56 . . 4 16 16 . 6 20 28 Entropic 11 | . . . . . . . . . . . . . . . . . . . . . . . . . . . . . . . . . . . . . . . 1 10 . Robot Hit Streak 24 | 6 9 4 18 . . 2 12 16 15 17 14 6 24 13 10 18 6 7 . 17 23 8 4 11 11 20 10 7 12 . 9 19 6 1 13 11 14 8 17 19 11 Robot Miss Streak 8 | 2 6 2 4 1 . 2 5 4 5 6 5 3 1 7 1 8 3 3 . 4 6 3 4 4 2 5 5 2 2 . 3 7 1 . 5 2 6 2 5 2 2 Penetration Max 1 | . . . . . . . . . . 1 1 . . . . . . . . . . . . 1 . 1 1 . . . . . . . . . . . 1 . . Secondary Targets 10 | . . . . . . . 1 5 . 1 . . . 2 . 1 . . . . . . . . . . . . . . . . . . . . . . . . . Max Gunslinging Chain 1 | . . . . . . . 1 1 . 1 . . . 1 . 1 . . . . . . . . . . . . . . . . . . . . . . . . . Capacitor 482 | . . . . . . . . . . . . . . . . . . . . . . . . 16 . . . . . . . 72 9 . 30 15 . 3 151 128 58 Autonomous 114 | . . . . . . . . . . . . . 38 34 38 4 . . . . . . . . . . . . . . . . . . . . . . . . . Shots Hit Robots 2309 | 12 114 19 157 . . 5 96 120 89 90 80 24 36 67 53 126 23 37 . 34 180 21 21 125 23 57 46 29 22 10 42 161 10 7 32 27 84 12 97 67 54 Core Hits 1525 | 5 45 8 104 28 . 18 58 51 64 47 43 14 10 28 32 196 13 15 . 16 110 4 15 73 11 29 30 19 12 . 36 139 13 6 19 32 43 6 76 32 25 Critical Kills 29 | 1 1 . . . . . . . . 1 . . . . . . . 2 . . . . 1 8 2 1 1 . . . . 2 . . . . 1 1 5 1 1 Critical Parts Destroyed 12 | . . 2 . . . . . 1 . . 1 . . . . . . . . . . . 3 4 . . . . . . . 1 . . . . . . . . . Critical Strikes 115 | 1 3 3 4 . . 1 5 6 3 2 1 . 1 5 2 2 . 2 . . . . 4 17 3 6 2 2 2 . 4 13 . 1 1 2 3 1 9 2 2 Burn 25 | . 1 1 4 . . 1 5 5 3 1 . . . 1 . . . . . . . . . . . . . . . . . . . . 1 2 . . . . . Meltdown 21 | . . . . . . . . . . . . . . . . . . 2 . . . . 1 3 2 1 1 . . . . 2 . . . . 1 1 5 1 1 Destroy 19 | 1 1 . . . . . . 1 . 1 1 . . . . . . . . . . . 3 9 . . . . . . . 1 . 1 . . . . . . . Blast 38 | . 1 . . . . . . . . . . . 1 4 1 2 . . . . . . . 5 1 5 1 2 2 . 3 6 . . . . 2 . 2 . . Corrupt 2 | . . . . . . . . . . . . . . . . . . . . . . . . . . . . . . . . 1 . . . . . . . . 1 Smash 2 | . . 2 . . . . . . . . . . . . . . . . . . . . . . . . . . . . . . . . . . . . . . . Sever 5 | . . . . . . . . . . . . . . . 1 . . . . . . . . . . . . . . . 1 3 . . . . . . . . . Sunder 3 | . . . . . . . . . . . . . . . . . . . . . . . . . . . . . . . . . . . . . . . 2 1 . Melee Attacks 164 | . 19 31 1 . . 2 10 6 . 1 . 12 . 11 19 1 1 . . 8 . 3 . . . . 7 . . 11 . 11 2 8 . . . . . . . Impact 47 | . 16 31 . . . . . . . . . . . . . . . . . . . . . . . . . . . . . . . . . . . . . . . Slashing 71 | . . . 1 . . 2 10 6 . 1 . . . 11 19 1 1 . . 8 . 3 . . . . 7 . . 1 . . . . . . . . . . . Piercing 17 | . . . . . . . . . . . . . . . . . . . . . . . . . . . . . . . . 9 . 8 . . . . . . . Sneak Attacks 63 | . 9 8 1 . . 2 3 . . . . 12 . 3 . . . . . 1 . 3 . . . . 3 . . 10 . 5 1 2 . . . . . . . Combat Hostiles . | . . . . . . . . . . . . . . . . . . . . . . . . . . . . . . . . . . . . . . . . . . Follow-up Attacks . | . . . . . . . . . . . . . . . . . . . . . . . . . . . . . . . . . . . . . . . . . . Damage Inflicted 105348 | 131 1952 926 6017 1257 . 751 2669 3055 4318 2578 2906 620 2939 3314 3864 8777 634 919 . 981 4901 1113 1210 4753 829 2572 2166 1398 785 . 2906 10829 546 408 1355 1894 5147 463 6986 3499 2980 Guns 19364 | 131 1336 76 1504 . . 43 2075 2255 455 1670 1015 247 . 342 . 1849 132 223 . 341 3087 258 . . 58 . . . . . 55 239 . 104 738 251 140 307 230 . 203 Cannons 50427 | . 201 . 1912 . . . . 388 1520 326 755 . 2939 2772 2730 879 471 696 . 332 1752 623 862 4202 771 2480 1701 986 754 . 1268 5009 303 33 64 257 3295 64 3821 3484 2777 Explosions 30577 | . . 229 2509 1207 . 580 359 412 2312 582 1129 373 . . 81 5909 . . . . . . 348 551 . 39 78 412 . . 1503 5249 243 . 553 1386 1636 . 2897 . . Melee 4000 | . 370 621 63 . . 124 226 . . . . . . 189 1053 . . . . 308 . 232 . . . . 347 . . . . 196 . 271 . . . . . . . Ramming 806 | . 45 . 29 50 . 4 9 . 31 . 7 . . 11 . 140 31 . . . 62 . . . . 53 40 . 31 . 10 32 . . . . 76 92 38 15 . Kinetic 24510 | 131 853 . . . . . . 792 . 1454 913 69 2939 2259 2649 841 146 30 . . 1676 . 463 2865 155 1181 472 484 438 . 647 1442 . 104 . . 740 . 340 48 379 Thermal 42376 | . 684 76 3416 . . 43 2075 1851 2128 542 857 178 . 855 81 1887 457 889 . 673 3163 847 399 1337 674 1299 1229 502 316 . 647 2973 303 33 1059 542 2923 371 3826 1856 1385 Explosive 26700 | . . 229 2509 1207 . 580 359 412 2159 582 1129 373 . . 81 5909 . . . . . . 348 551 . 39 78 412 . . 1503 4597 243 . . 129 928 . 2343 . . Electromagnetic 5939 | . . . . . . . . . . . . . . . . . . . . . . 34 . . . . . . . . 29 1485 . . 296 1223 480 . 278 898 1216 Impact 991 | . 370 621 . . . . . . . . . . . . . . . . . . . . . . . . . . . . . . . . . . . . . . . Slashing 2716 | . . . 63 . . 124 226 . . . . . . 189 1053 . . . . 308 . 232 . . . . 347 . . . 70 104 . . . . . . . . . Piercing 467 | . . . . . . . . . . . . . . . . . . . . . . . . . . . . . . . . 196 . 271 . . . . . . . Entropic 843 | . . . . . . . . . . . . . . . . . . . . . . . . . . . . . . . . . . . . . . . 161 682 . Highest Corruption 38 | . 1 1 8 8 8 8 4 13 18 19 28 1 32 36 36 38 38 38 28 28 2 2 3 8 8 9 9 9 9 9 4 11 12 12 12 . 8 . 9 1 4 Average Corruption 12 | . 1 1 2 8 8 8 3 10 13 18 20 1 17 33 36 36 38 34 28 28 1 2 2 5 8 8 9 9 9 9 4 4 11 12 11 . 5 . 8 1 3 Corruption Purged 18 | . . . . . . . . . . . . . . . . . . 10 . . 1 . . . . . . . . . . . . . . . 6 . . 1 . Corruption Blocked . | . . . . . . . . . . . . . . . . . . . . . . . . . . . . . . . . . . . . . . . . . . Effects 1837 | . 5 9 132 54 19 32 51 87 66 72 62 1 13 101 138 137 80 98 9 72 14 12 15 72 36 34 86 48 30 2 8 46 29 21 2 . 51 . 81 5 7 Message Errors 435 | . 1 1 32 12 4 5 17 17 16 17 12 . 4 19 40 33 16 27 1 15 2 2 1 20 7 9 30 7 4 . 1 9 6 3 1 . 22 . 19 2 1 Matter Fused 439 | . . 6 35 14 4 12 12 24 11 14 14 . 3 28 32 29 22 19 1 20 1 1 2 16 9 9 15 9 10 . 1 14 10 9 . . 9 . 19 2 3 Heat Flow Errors 211 | . 2 1 13 10 4 6 1 11 4 12 5 1 2 3 16 26 8 14 1 5 2 2 3 10 6 6 8 2 2 1 . 1 5 3 . . 5 . 9 . 1 Energy Discharges 207 | . 1 . 17 4 . 4 6 12 9 7 9 . 2 8 20 8 8 10 1 8 2 4 3 10 6 1 10 9 4 1 1 6 4 2 . . 2 . 7 . 1 Parts Rejected 17 | . . . . . . . 1 . 1 . 2 . . . 2 2 1 . . . 1 . . 2 1 1 1 . . . . 1 . . . . . . 1 . . Parts Fused 22 | . . . 2 1 1 . . . 1 . . . 1 1 2 . . 3 1 2 . . . . . 1 1 . . . . . . . 1 . 1 . 3 . . Data Loss (minor) 237 | . . 1 15 10 5 4 9 7 10 7 8 . . 16 19 15 9 6 3 15 3 2 4 8 2 3 13 8 4 . 4 6 2 2 . . 5 . 12 . . Data Loss (major) 70 | . . . 3 2 1 1 2 3 3 2 2 . . 4 4 6 4 4 . 2 . . 1 2 1 1 3 4 1 . . 3 1 1 . . . . 7 1 1 Misfires 82 | . . . 9 . . . 1 5 3 5 2 . 1 7 . 5 4 7 . 4 2 1 . 2 2 . 3 5 4 . . 3 1 1 . . 2 . 3 . . Alerts 36 | . 1 . 4 1 . . 1 1 1 2 2 . . 2 1 4 1 3 1 1 1 . 1 . . . . 1 . . 1 3 . . . . 2 . 1 . . Misdirections 9 | . . . . . . . . 1 1 . 3 . . 2 . . 2 . . . . . . . . . . . . . . . . . . . . . . . . Weapon Failures 72 | . . . 2 . . . 1 6 6 6 3 . . 11 2 9 5 5 . . . . . 2 2 3 2 3 1 . . . . . . . 3 . . . . Overload Shots 9 | . . . . . . . . . . . . . . . . . . . . . . 7 . . . . . . . . 2 . . . . . . . . . . Overflow Damage 3753 | . 125 216 74 74 . . 32 20 57 . 7 19 . 448 417 166 12 . . 100 14 19 70 89 5 34 117 65 27 . 70 360 39 34 . 140 329 37 222 11 304 Projectiles 2170 | . . . 49 . . . . . 34 . . . . 382 360 94 . . . . 14 . 28 63 5 34 32 65 2 . 70 252 27 . . . 238 . 106 11 304 Explosions 712 | . . 36 2 74 . . . 20 23 . 7 19 . . . 48 . . . . . . 42 26 . . . . . . . 77 12 . . 140 70 . 116 . . Melee 871 | . 125 180 23 . . . 32 . . . . . . 66 57 24 12 . . 100 . 19 . . . . 85 . 25 . . 31 . 34 . . 21 37 . . . Knockbacks 85 | . 5 3 . 1 . 1 . . . . . . . 10 7 3 3 1 . . . . 4 14 . 6 . 3 . . 4 16 . . . . 2 . 1 . 1 Impact 9 | . 1 3 . 1 . 1 . . . . . . . . . 2 . . . . . . . . . . . . . . . . . . . . . . 1 . . Kinetic 69 | . 3 . . . . . . . . . . . . 9 6 1 3 1 . . . . 4 13 . 5 . 2 . . 4 15 . . . . 2 . . . 1 Secondary 7 | . 1 . . . . . . . . . . . . 1 1 . . . . . . . . 1 . 1 . 1 . . . 1 . . . . . . . . . Self-Inflicted Damage 994 | . . . 182 115 . 4 . . 25 57 31 . . . . . . . . . . . . . . . . . . . . 137 . . . . 225 46 172 . . Shots 27 | . . . 6 4 . 1 . . 1 2 1 . . . . . . . . . . . . . . . . . . . . 4 . . . . 4 . 4 . . Rammed 59 | . 6 1 7 4 . 1 1 . 2 . 1 . . 1 . 8 2 . . . 7 . . . . 4 2 . 1 . 1 2 . . . . 2 1 4 1 . Targets Rammed 65 | . 6 1 8 5 . 1 2 . 4 . 1 . . 2 . 8 2 . . . 7 . . . . 4 2 . 1 . 1 2 . . . . 2 1 4 1 . Kicked . | . . . . . . . . . . . . . . . . . . . . . . . . . . . . . . . . . . . . . . . . . . Crushed 6 | . . . 1 1 . . 1 . 2 . . . . 1 . . . . . . . . . . . . . . . . . . . . . . . . . . . Highest Temperature 661 | . 318 182 313 291 279 250 481 232 270 242 240 131 256 399 282 415 496 386 104 552 176 263 252 456 353 434 420 298 123 . 43 436 343 216 277 490 661 132 272 99 185 Average Temperature 89 | . 81 50 74 106 125 86 94 46 81 96 86 35 122 105 83 104 140 111 61 163 28 68 60 90 110 96 98 89 31 . 19 109 82 75 94 101 131 31 55 26 41 Received Heat Transfer 5176 | . 172 60 90 . . 18 338 291 364 247 213 18 . 102 76 624 153 141 . 96 106 . 6 573 45 69 49 194 6 . 122 622 18 9 128 36 54 18 74 36 8 Effects 45 | . . . 2 . 1 . . . . . . . . 3 . 2 3 . . 7 . . . 4 1 1 3 . . . . 2 . . . 2 14 . . . . Shutdowns 7 | . . . . . . . . . . . . . . 1 . . . . . 1 . . . 1 . . . . . . . . . . . 2 2 . . . . Energy Bleed 8 | . . . . . . . . . . . . . . 2 . 1 . . . . . . . 2 . . . . . . . . . . . . 3 . . . . Interference 17 | . . . 2 . 1 . . . . . . . . . . . 2 . . 5 . . . . 1 . 3 . . . . 2 . . . . 1 . . . . Matter Decay 3 | . . . . . . . . . . . . . . . . . 1 . . . . . . . . 1 . . . . . . . . . . 1 . . . . Short Circuit 2 | . . . . . . . . . . . . . . . . . . . . . . . . . . . . . . . . . . . . . 2 . . . . Damage (minor) 4 | . . . . . . . . . . . . . . . . 1 . . . . . . . 1 . . . . . . . . . . . . 2 . . . . Damage (major) 3 | . . . . . . . . . . . . . . . . . . . . . . . . . . . . . . . . . . . . . 3 . . . . Damage (core) 1 | . . . . . . . . . . . . . . . . . . . . 1 . . . . . . . . . . . . . . . . . . . . . Siege Activations 20 | . . . . . . . . . . . . . . . . 3 . . . . 1 . . 8 . 1 . . . . . 1 . . . . . . 5 1 . Total Turns 351 | . . . . . . . . . . . . . . . . 70 . . . . 8 . . 152 . 9 . . . . . 38 . . . . . . 66 8 . Longest Duration 45 | . . . . . . . . . . . . . . . . 35 . . . . 8 . . 45 . 9 . . . . . 38 . . . . . . 23 8 . Martial Activations . | . . . . . . . . . . . . . . . . . . . . . . . . . . . . . . . . . . . . . . . . . . Shielding Activations . | . . . . . . . . . . . . . . . . . . . . . . . . . . . . . . . . . . . . . . . . . . Robots Disrupted . | . . . . . . . . . . . . . . . . . . . . . . . . . . . . . . . . . . . . . . . . . . Combat Hostiles . | . . . . . . . . . . . . . . . . . . . . . . . . . . . . . . . . . . . . . . . . . . Robots Corrupted 32 | . 4 3 . . . . . . . . . . . 1 . 1 1 . . . . . . . . . . . 1 . . 6 . . . 4 3 1 . 3 4 Combat Hostiles 16 | . . 1 . . . . . . . . . . . . . . . . . . . . . . . . . . . . . 6 . . . 4 2 . . 2 1 Parts Fried 73 | . 8 9 . . . . . . . . . . . 3 . 1 . . . . . . . . . . . . 1 . . 16 . . . 6 4 1 . 9 15 Impact Corruptions 23 | . 7 7 . . . . . . . . . . . 1 . 1 2 . . . . . . . . . . . 3 . . . . . . . 1 1 . . . Robots Melted 24 | . . . . . . . . 1 . . . . . . . 1 . 2 . . . . 1 3 2 1 1 . . . . 2 . . 1 . 1 1 5 1 1 Combat Hostiles 18 | . . . . . . . . 1 . . . . . . . 1 . 1 . . . . . 3 1 1 1 . . . . . . . 1 . 1 1 4 1 1 Parts Melted 141 | . 1 . 7 . . . 7 6 6 . 2 . . 4 . 18 3 4 . 3 18 . 2 7 6 2 7 . . . 2 8 1 . 2 2 3 2 9 3 6 Heat Transferred 59154 | . 1739 222 5699 . . 148 3959 3182 3060 859 1139 278 . 1723 150 3890 875 1725 . 1350 5187 1050 600 1987 985 1683 1646 657 370 . 924 3589 333 37 1468 986 1520 507 3354 1554 719 Parts Sabotaged 7 | . . . . . . . . . . . . . . . . . . . . . . . . . . 4 . . . . . 3 . . . . . . . . . Parts Stolen 1 | . . . . . . . . . . . . . . . . . . . . . . . . . . . . 1 . . . . . . . . . . . . . Parts Stripped . | . . . . . . . . . . . . . . . . . . . . . . . . . . . . . . . . . . . . . . . . . . Power Chain Reactions 11 | . . . . . . . . . . . . . . . . . . . . . . . . . . . . . . . . 1 . . 2 1 5 . 2 . . Alert | -11 -10 -10 -9 -9 -9 -8 -8 -8 -8 -8 -8 -7 -7 -7 -7 -7 -7 -7 -7 -6 -6 -6 -6 -6 -6 -6 -6 -6 -6 -6 -5 -5 -5 -5 -5 -4 -4 -3 -2 -1 -1 ------- Run | Yrd Mat Min Mat Min Exi Min Mat Gar Mat Gar Mat Fac Was Fac Gar Fac Low Low Dat Pro Fac Was Fac Gar Fac Gar Fac Low Low Zio Pro Fac Upp Upp War Pro Fac Res Res Acc Com Maximum Alert Level 5 | . . . 5 3 . . 1 5 4 5 4 3 1 1 5 5 . . . . 2 . 1 5 4 4 3 . . . . 5 . . . . 2 1 2 2 1 Low Security (%) 42 | 100 100 100 40 . . 100 99 4 . . . . 83 97 4 . . . . . 69 100 85 4 . . . . . . . 20 . . . . 72 11 51 . 81 Level 1 9 | . . . 9 10 . . . 10 . . . . 16 2 7 . . . . . 28 . 14 13 . . . . . . . . . . . . 11 88 6 92 18 Level 2 11 | . . . 5 77 . . . 9 . . . 69 . . 15 . . . . . 1 . . 17 . . 59 . . . . 7 . . . . 16 . 41 7 . Level 3 12 | . . . 18 12 . . . 27 39 12 67 30 . . 22 6 . . . . . . . 21 . 38 40 . . . . 20 . . . . . . . . . Level 4 16 | . . . 21 . . . . 32 60 50 32 . . . 24 82 . . . . . . . 15 100 61 . . . . . 20 . . . . . . . . . Level 5 6 | . . . 3 . . . . 15 . 36 . . . . 25 . . . . . . . . 28 . . . . . . . 31 . . . . . . . . . High Security . | . . . . . . . . . . . . . . . . 11 . . . . . . . . . . . . . . . . . . . . . . . . . Max Security . | . . . . . . . . . . . . . . . . . . . . . . . . . . . . . . . . . . . . . . . . . . Sterilizations 1 | . . . 1 . . . . . . . . . . . . . . . . . . . . . . . . . . . . . . . . . . . . . . Peak Influence 2484 | 10 156 100 1628 778 . 134 202 1885 1522 2095 1267 739 241 201 2241 2130 . . . . 413 143 246 2484 1364 1494 784 . . . . 1827 . . . . 617 329 630 420 257 Initial 1304 | . . 60 14 630 . . . 131 918 967 1021 576 241 9 129 1176 . . . . . 143 . 147 1304 803 784 . . . . 94 . . . . 37 321 102 377 240 Average 571 | 1 32 24 608 541 . 32 55 1048 1146 1505 1078 640 114 95 1131 1369 . . . . 116 5 86 1122 1265 1200 666 . . . . 1082 . . . . 166 257 253 360 154 Influence Increases 28918 | 15 585 303 2402 298 . 240 820 1854 1167 1228 736 243 3 643 2152 1716 145 208 . 110 926 42 604 2517 322 711 654 315 145 . 425 2829 194 22 217 450 1114 164 1408 613 378 Destroy 0b10 Robot/C 13860 | . 300 160 940 160 . 120 500 780 580 520 400 100 . 340 700 1140 100 180 . 80 420 . 200 960 180 460 260 240 120 . 360 1240 160 20 200 360 420 20 740 220 180 Destroy 0b10 Robot/NC 1645 | 15 110 50 275 15 . 15 80 5 90 5 40 30 . 55 35 90 . 5 . 10 150 . 25 5 10 . 50 . 5 . 5 175 5 . . 10 85 35 40 75 45 Destroy Leader 2548 | . 80 20 266 30 . 20 140 40 124 30 118 20 . 86 50 228 30 20 . 20 168 . 72 70 52 40 76 30 20 . 30 208 20 . . 40 108 12 142 84 54 Allied During Kill 694 | . . 22 66 . . . . 5 10 20 . 31 . 9 71 32 . 3 . . 10 . 209 145 31 . . . . . . . 9 2 2 10 . . . 7 . Successful Hack 623 | . 44 . 57 . . . 24 34 24 19 14 26 . 42 12 30 . . . . 35 . 25 . 6 . 36 . . . . 4 . . . . 40 59 12 26 54 Select Force Hacks 120 | . 30 . 30 . . . . . 30 . . . . 30 . . . . . . . . . . . . . . . . . . . . . . . . . . . Disable Machine 2085 | . 15 15 375 . . 45 15 75 105 45 45 15 . 30 30 15 . . . . 105 . 30 120 . 30 180 . . . . 570 . . . . 120 . 30 45 30 Anti-Garrison Action 3550 | . . . . . . . . 800 . 450 . . . . 1200 . . . . . . . . 1000 . 100 . . . . . . . . . . . . . . . Destroy Structure 3178 | . 6 21 393 93 . 40 46 55 144 94 104 21 3 21 54 181 . . . . 23 42 43 172 43 66 52 . . . . 542 . . . . 326 38 399 141 15 Partial Spotted 15 | . . . . . . . . . 15 . . . . . . . . . . . . . . . . . . . . . . . . . . . . . . . . Lose Combat Pursuer 600 | . . 15 . . . . 15 60 45 45 15 . . 30 . . 15 . . . 15 . . 45 . 15 . 45 . . 30 90 . . 15 30 15 . 45 15 . Influence Decreases 28806 | 15 430 419 823 1547 369 239 619 171 1563 622 1564 821 678 472 96 1837 1295 803 375 110 515 453 394 243 1658 365 1436 806 294 72 274 1653 866 371 464 449 561 594 961 866 643 Entered New Map 12492 | . . 95 25 988 369 . 1 71 967 522 1074 691 448 5 56 1065 785 185 375 . . 268 . 63 1180 345 710 264 43 72 . 57 492 125 306 59 23 292 81 253 137 Time Decay 13467 | 15 430 284 738 559 . 239 433 . 546 . 490 130 160 427 . 622 510 598 . 110 435 76 334 . 428 . 656 522 251 . 234 636 334 246 138 330 445 302 770 553 486 Lost Part 951 | . . . 20 . . . 20 60 10 60 . . 10 10 . 70 . 20 . . . 100 . 30 10 10 . 20 . . 40 200 30 . 20 20 51 . 110 10 20 Lost Ally 1001 | . . 40 40 . . . 20 40 40 40 . . 60 30 40 80 . . . . 80 9 60 150 40 10 70 . . . . 10 10 . . 40 42 . . 50 . Purge Threat 895 | . . . . . . . 145 . . . . . . . . . . . . . . . . . . . . . . . . 750 . . . . . . . . . Squads Dispatched 170 | . 4 1 16 . . 1 5 . 4 . 3 1 . 6 . 26 . . . . 10 . 2 . 7 . 11 . . . 1 31 . . . . 12 3 5 11 10 Investigation 25 | . 2 1 3 . . . . . 2 . . . . 2 . . . . . . 1 . . . 1 . 3 . . . . 2 . . . . 3 2 . 2 1 Extermination 41 | . . . . . . . . . . . . 1 . 3 . 4 . . . . 7 . 2 . 2 . 4 . . . . 6 . . . . 4 1 . 4 3 Reinforcement 52 | . 2 . 9 . . 1 3 . . . 1 . . 1 . 5 . . . . 2 . . . 1 . 1 . . . . 9 . . . . 4 . 5 2 6 Assault 39 | . . . 4 . . . . . 2 . 2 . . . . 13 . . . . . . . . 3 . 3 . . . 1 10 . . . . 1 . . . . Garrison 13 | . . . . . . . 2 . . . . . . . . 4 . . . . . . . . . . . . . . . 4 . . . . . . . 3 . Intercept . | . . . . . . . . . . . . . . . . . . . . . . . . . . . . . . . . . . . . . . . . . . Searches Triggered . | . . . . . . . . . . . . . . . . . . . . . . . . . . . . . . . . . . . . . . . . . . Unchained Authorized 1 | . . . . . . . . . . . . . . . . . . . . . . . . . . . . . . . . . . . . . . . . 1 . Data Miner Redirects 16 | . . . . . . . . . . . . . . . . . . . . . . . . . 3 . 4 . . . . 7 . . . . . 2 . . . Construction Impeded 17 | . . . 7 . . 1 1 . . . . . . . . 2 . . . . . . . . 1 . . . . . . 3 . . . . 2 . . . . Haulers Reinforced 8 | . . . . . . . . . . . . . . . . . . . . . 2 . . . . . 1 . . . . 1 . . . . 1 . 1 2 . Active Scanning Responses . | . . . . . . . . . . . . . . . . . . . . . . . . . . . . . . . . . . . . . . . . . . Cargo Convoy Interrupts 1 | . . . . . . . . . . . . . . . . . . . . . . . . . . . . . . . . 1 . . . . . . . . . Stealth | -11 -10 -10 -9 -9 -9 -8 -8 -8 -8 -8 -8 -7 -7 -7 -7 -7 -7 -7 -7 -6 -6 -6 -6 -6 -6 -6 -6 -6 -6 -6 -5 -5 -5 -5 -5 -4 -4 -3 -2 -1 -1 --------- Run | Yrd Mat Min Mat Min Exi Min Mat Gar Mat Gar Mat Fac Was Fac Gar Fac Low Low Dat Pro Fac Was Fac Gar Fac Gar Fac Low Low Zio Pro Fac Upp Upp War Pro Fac Res Res Acc Com Distress Signals 35 | . 1 . 4 . . . 5 . 5 . 3 . . 1 . 2 . . . . 2 . . . . . 2 . . . . 2 . . . . . . 4 3 1 Communications Jammed 51 | . . . . . . . . . . . . . . . . . . . . . . . 1 . . . 21 . . . . 23 . . . . 3 . . 3 . Distress Signals 50 | . . . . . . . . . . . . . . . . . . . . . . . 1 . . . 21 . . . . 22 . . . . 3 . . 3 . Times Spotted 1009 | . 45 9 61 20 . 4 36 38 42 25 33 5 7 23 29 78 6 13 . 5 32 3 12 50 10 19 26 19 6 . 22 95 9 1 63 15 31 2 66 18 31 Peak Tracking Total 11 | . 3 3 5 5 . 3 4 6 7 5 5 4 2 5 4 10 3 4 . 3 5 2 3 4 3 4 3 5 4 . 10 11 4 1 9 4 5 1 6 2 6 Tactical Retreats 32 | . . 1 . . . . 1 4 2 2 1 . . 2 . . 1 . . . 1 . . 2 . 1 . 2 . . 1 4 . . 1 2 1 . 2 1 . Traps | -11 -10 -10 -9 -9 -9 -8 -8 -8 -8 -8 -8 -7 -7 -7 -7 -7 -7 -7 -7 -6 -6 -6 -6 -6 -6 -6 -6 -6 -6 -6 -5 -5 -5 -5 -5 -4 -4 -3 -2 -1 -1 ------- Run | Yrd Mat Min Mat Min Exi Min Mat Gar Mat Gar Mat Fac Was Fac Gar Fac Low Low Dat Pro Fac Was Fac Gar Fac Gar Fac Low Low Zio Pro Fac Upp Upp War Pro Fac Res Res Acc Com Traps Triggered 52 | . 2 . 1 . . . 3 6 4 5 . 1 . 3 11 1 . . . . 1 . . 7 . 1 . . . . . 4 . . . . 1 . . . 1 Indirectly . | . . . . . . . . . . . . . . . . . . . . . . . . . . . . . . . . . . . . . . . . . . Trap Hack Attempts 182 | . 182 . . . . . . . . . . . . . . . . . . . . . . . . . . . . . . . . . . . . . . . . Triggered . | . . . . . . . . . . . . . . . . . . . . . . . . . . . . . . . . . . . . . . . . . . Disarmed 3 | . 3 . . . . . . . . . . . . . . . . . . . . . . . . . . . . . . . . . . . . . . . . Reprogrammed 8 | . 8 . . . . . . . . . . . . . . . . . . . . . . . . . . . . . . . . . . . . . . . . Reused 1 | . . . . . . . . . . . . . . . . . . . . . . . . . . . . . . . . . 1 . . . . . . . . Traps Extracted 2 | . . . . . . . . . . . . . . . . . . . . . . . . . . . . . . . . . 1 . 1 . . . . . . Installed 6 | . . . . . . . . . . . 4 . . . . . . . . . . . . . . . . . . . . . 2 . . . . . . . . Triggered 1 | . . . . . . . . . . . . . . . . . . . . . . . . . . . . . . . . . 1 . . . . . . . . Most Traps Carried 9 | . . . . . . . . . . 4 4 . . . . . . . . . . . . . . . . . . . . . 9 7 7 7 7 7 7 . . Machines | -11 -10 -10 -9 -9 -9 -8 -8 -8 -8 -8 -8 -7 -7 -7 -7 -7 -7 -7 -7 -6 -6 -6 -6 -6 -6 -6 -6 -6 -6 -6 -5 -5 -5 -5 -5 -4 -4 -3 -2 -1 -1 ---------- Run | Yrd Mat Min Mat Min Exi Min Mat Gar Mat Gar Mat Fac Was Fac Gar Fac Low Low Dat Pro Fac Was Fac Gar Fac Gar Fac Low Low Zio Pro Fac Upp Upp War Pro Fac Res Res Acc Com Machines Disabled 173 | . 1 1 26 . . 3 1 16 7 8 3 1 . 2 8 1 . . . . 7 . 2 16 . 4 12 1 . . . 38 . . . . 8 . 2 3 2 Max in Single Turn 12 | . 1 1 3 . . 1 1 2 2 1 2 1 . 1 1 1 . . . . 1 . 1 2 . 1 2 1 . . . 12 . . . . 2 . 1 1 1 Garrison Access 4 | . . . . . . . . . . . . . . . . . . . . . . . . . . . . . . . . 1 . . . . . . 3 . . Garrison Relay 24 | . . . . . . . . 8 . 5 . . . . 5 . . . . . . . . 4 . 2 . . . . . . . . . . . . . . . Phase Generator 3 | . . . . . . . . 1 . . . . . . 1 . . . . . . . . 1 . . . . . . . . . . . . . . . . . Machines Repaired . | . . . . . . . . . . . . . . . . . . . . . . . . . . . . . . . . . . . . . . . . . . Machines Dismantled . | . . . . . . . . . . . . . . . . . . . . . . . . . . . . . . . . . . . . . . . . . . Machines Sabotaged . | . . . . . . . . . . . . . . . . . . . . . . . . . . . . . . . . . . . . . . . . . . Overloaded Fab Kills . | . . . . . . . . . . . . . . . . . . . . . . . . . . . . . . . . . . . . . . . . . . Hacking | -11 -10 -10 -9 -9 -9 -8 -8 -8 -8 -8 -8 -7 -7 -7 -7 -7 -7 -7 -7 -6 -6 -6 -6 -6 -6 -6 -6 -6 -6 -6 -5 -5 -5 -5 -5 -4 -4 -3 -2 -1 -1 --------- Run | Yrd Mat Min Mat Min Exi Min Mat Gar Mat Gar Mat Fac Was Fac Gar Fac Low Low Dat Pro Fac Was Fac Gar Fac Gar Fac Low Low Zio Pro Fac Upp Upp War Pro Fac Res Res Acc Com Machines Accessed 154 | . 9 1 15 1 2 . 9 3 7 4 7 1 . 9 2 6 2 . 4 . 10 . 5 1 7 . 10 . 1 . . 6 1 . 2 . 11 4 2 6 6 Terminals 85 | . 6 . 9 . . . 7 3 5 4 7 . . 5 2 2 1 . . . 5 . 1 1 4 . 5 . . . . 2 . . . . 4 2 1 3 6 Fabricators 11 | . . . . . . . . . . . . 1 . 1 . . . . . . 1 . 1 . . . 3 . . . . 1 . . . . 1 1 . 1 . Repair Stations 5 | . 1 . 2 . . . . . . . . . . . . 1 . . . . . . 1 . . . . . . . . . . . . . . . . . . Recycling Units 18 | . 2 . 2 . . . . . 1 . . . . 1 . . . . . . 3 . . . 2 . 1 . . . . 1 . . . . 4 . . 1 . Scanalyzers 11 | . . . 2 . . . 1 . . . . . . 1 . 2 . . . . . . 1 . . . 1 . . . . 1 . . . . 1 1 . . . Garrison Access 11 | . . . . . . . 1 . 1 . . . . 1 . 1 . . . . 1 . 1 . 1 . . . . . . 1 . . . . 1 . 1 1 . Total Hacks 414 | . 25 1 49 1 5 . 29 7 19 7 16 4 . 24 6 20 3 . 28 . 20 . 18 2 16 . 29 . 1 . . 20 1 . 5 . 24 9 2 13 10 Successful 230 | . 15 1 26 1 5 . 20 3 9 2 9 2 . 11 3 11 2 . 28 . 5 . 11 . 8 . 15 . 1 . . 9 1 . 5 . 13 6 1 4 3 Failed 181 | . 10 . 22 . . . 9 4 10 5 7 2 . 12 3 9 1 . . . 15 . 7 2 8 . 14 . . . . 10 . . . . 11 3 1 9 7 Catastrophic 34 | . . . 2 . . . . 1 2 1 . . . 1 . 3 . . . . 4 . 4 . 4 . 1 . . . . 1 . . . . 3 . 1 4 2 Database Lockouts 3 | . . . 1 . . . . . . . . . . 1 . . . . . . . . . . . . . . . . . 1 . . . . . . . . . Manual 176 | . 18 . 21 . 1 . 21 1 9 . 13 3 . 10 2 4 . . . . 14 . 1 . 11 . 6 . . . . 9 . . 1 . 9 4 1 8 9 Terminals 203 | . 15 . 25 . . . 26 7 15 7 16 . . 12 6 5 2 . . . 7 . 3 2 7 . 12 . . . . 7 . . . . 8 5 1 5 10 Fabricators 32 | . . . . . . . . . . . . 4 . 1 . . . . . . 4 . 2 . . . 11 . . . . 1 . . . . 1 3 . 5 . Repair Stations 19 | . 3 . 7 . . . . . . . . . . . . 1 . . . . . . 8 . . . . . . . . . . . . . . . . . . Recycling Units 51 | . 7 . 6 . . . . . 3 . . . . 2 . . . . . . 7 . . . 7 . 2 . . . . 4 . . . . 11 . . 2 . Scanalyzers 49 | . . . 11 . . . 2 . . . . . . 8 . 12 . . . . . . 4 . . . 4 . . . . 5 . . . . 2 1 . . . Garrison Access 17 | . . . . . . . 1 . 1 . . . . 1 . 2 . . . . 2 . 1 . 2 . . . . . . 3 . . . . 2 . 1 1 . Terminal Hacks 81 | . 3 1 3 1 5 . 7 3 3 2 3 . . 2 2 1 2 . 28 . . . . . 1 . 2 . 1 . . . 1 . 5 . 2 2 . . 1 Record 16 | . . . . . 4 . . . . . . . . . . . 1 . 11 . . . . . . . . . . . . . . . . . . . . . . Part Schematic 10 | . . . . . . . . . . . . . . . . . . . 10 . . . . . . . . . . . . . . . . . . . . . . Robot Schematic 4 | . . . . . . . . . . . . . . . . . . . 4 . . . . . . . . . . . . . . . . . . . . . . Robot Analysis 7 | . 1 . 2 . . . 4 . . . . . . . . . . . . . . . . . . . . . . . . . . . . . . . . . . Prototype ID Bank 9 | . . . 1 . . . . . 1 . . . . . . . . . 3 . . . . . . . . . . . . . . . 4 . . . . . . Open Door 9 | . . 1 . 1 . . . 1 . 1 . . . . . . 1 . . . . . . . . . . . 1 . . . 1 . 1 . . . . . 1 Branch Access Points 6 | . . . . . . . . . 1 . . . . 1 . 1 . . . . . . . . . . 1 . . . . . . . . . 1 1 . . . Emergency Access Points 2 | . . . . . . . . 1 . . . . . . 1 . . . . . . . . . . . . . . . . . . . . . . . . . . Machine Index 1 | . . . . . . . . . . . . . . . . . . . . . . . . . . . . . . . . . . . . . 1 . . . . Terminal Index 7 | . . . . . . . 1 . 1 . 1 . . 1 . . . . . . . . . . 1 . 1 . . . . . . . . . . 1 . . . Alert Level 1 | . . . . . . . . . . . 1 . . . . . . . . . . . . . . . . . . . . . . . . . . . . . . Unreport Threat 1 | . . . . . . . 1 . . . . . . . . . . . . . . . . . . . . . . . . . . . . . . . . . . Locate Traps 2 | . 1 . . . . . . . . . 1 . . . . . . . . . . . . . . . . . . . . . . . . . . . . . . Reprogram Traps 1 | . 1 . . . . . . . . . . . . . . . . . . . . . . . . . . . . . . . . . . . . . . . . Hauler Manifests 1 | . . . . . . . 1 . . . . . . . . . . . . . . . . . . . . . . . . . . . . . . . . . . Garrison Registry 1 | . . . . . . . . . . 1 . . . . . . . . . . . . . . . . . . . . . . . . . . . . . . . Patrol Navigation 1 | . . . . . . . . . . . . . . . 1 . . . . . . . . . . . . . . . . . . . . . . . . . . Security Stations 1 | . . . . . . . . 1 . . . . . . . . . . . . . . . . . . . . . . . . . . . . . . . . . Proto ID Catalog 1 | . . . . . 1 . . . . . . . . . . . . . . . . . . . . . . . . . . . . . . . . . . . . Fabricator Hacks 9 | . . . . . . . . . . . . 1 . . . . . . . . . . 1 . . . 5 . . . . . . . . . . 1 . 1 . Network Status 4 | . . . . . . . . . . . . . . . . . . . . . . . 1 . . . 1 . . . . . . . . . . 1 . 1 . Load Schematic 2 | . . . . . . . . . . . . . . . . . . . . . . . . . . . 2 . . . . . . . . . . . . . . Build 3 | . . . . . . . . . . . . 1 . . . . . . . . . . . . . . 2 . . . . . . . . . . . . . . Repair Station Hacks 14 | . 2 . 6 . . . . . . . . . . . . . . . . . . . 6 . . . . . . . . . . . . . . . . . . Scan Component 7 | . 1 . 3 . . . . . . . . . . . . . . . . . . . 3 . . . . . . . . . . . . . . . . . . Repair 7 | . 1 . 3 . . . . . . . . . . . . . . . . . . . 3 . . . . . . . . . . . . . . . . . . Recycling Unit Hacks 12 | . 1 . 1 . . . . . 1 . . . . . . . . . . . 1 . . . 1 . 1 . . . . 1 . . . . 4 . . 1 . Retrieve Matter 1 | . . . . . . . . . . . . . . . . . . . . . . . . . . . 1 . . . . . . . . . . . . . . Retrieve Components 11 | . 1 . 1 . . . . . 1 . . . . . . . . . . . 1 . . . 1 . . . . . . 1 . . . . 4 . . 1 . Scanalyzer 34 | . . . 7 . . . 2 . . . . . . 4 . 10 . . . . . . 3 . . . 4 . . . . 2 . . . . 1 1 . . . Insert Component 13 | . . . 3 . . . . . . . . . . 1 . 6 . . . . . . 2 . . . . . . . . 1 . . . . . . . . . Analyze 8 | . . . 3 . . . . . . . . . . 2 . 3 . . . . . . . . . . . . . . . . . . . . . . . . . Retrieve Study 13 | . . . 1 . . . 2 . . . . . . 1 . 1 . . . . . . 1 . . . 4 . . . . 1 . . . . 1 1 . . . Garrison Access Hacks 6 | . . . . . . . 1 . 1 . . . . 1 . . . . . . . . 1 . 1 . . . . . . 1 . . . . . . . . . Unlock Access 5 | . . . . . . . 1 . 1 . . . . 1 . . . . . . . . 1 . 1 . . . . . . . . . . . . . . . . Seal Access 1 | . . . . . . . . . . . . . . . . . . . . . . . . . . . . . . . . 1 . . . . . . . . . Unauthorized Hacks 74 | . 9 . 9 . . . 10 . 4 . 6 1 . 4 1 . . . . . 4 . . . 5 . 3 . . . . 5 . . . . 6 2 1 2 2 Terminals 48 | . 7 . 8 . . . 10 . 3 . 6 . . 3 1 . . . . . 1 . . . 1 . 2 . . . . 2 . . . . 1 . 1 . 2 Track 1 | . . . 1 . . . . . . . . . . . . . . . . . . . . . . . . . . . . . . . . . . . . . . Assimilate 6 | . . . 1 . . . 2 . . . . . . . . . . . . . . . . . . . 1 . . . . . . . . . . . 1 . 1 Botnet 4 | . 1 . . . . . 2 . . . . . . . . . . . . . . . . . . . . . . . . . . . . . . . . . 1 Operators 5 | . 1 . 1 . . . 1 . . . 1 . . . . . . . . . . . . . . . . . . . . 1 . . . . . . . . . Skim 30 | . 5 . 5 . . . 5 . 3 . 5 . . 3 1 . . . . . 1 . . . . . . . . . . 1 . . . . 1 . . . . Search 2 | . . . . . . . . . . . . . . . . . . . . . . . . . 1 . 1 . . . . . . . . . . . . . . Fabricators 10 | . . . . . . . . . . . . 1 . . . . . . . . 2 . . . . . 1 . . . . 1 . . . . 1 2 . 2 . Report 2 | . . . . . . . . . . . . . . . . . . . . . 1 . . . . . . . . . . . . . . . . 1 . . . Liberate 3 | . . . . . . . . . . . . . . . . . . . . . . . . . . . . . . . . 1 . . . . 1 . . 1 . Haulers 4 | . . . . . . . . . . . . 1 . . . . . . . . 1 . . . . . . . . . . . . . . . . 1 . 1 . Recompile 1 | . . . . . . . . . . . . . . . . . . . . . . . . . . . 1 . . . . . . . . . . . . . . Repair Stations 1 | . 1 . . . . . . . . . . . . . . . . . . . . . . . . . . . . . . . . . . . . . . . . Patch 1 | . 1 . . . . . . . . . . . . . . . . . . . . . . . . . . . . . . . . . . . . . . . . Recycling Units 15 | . 1 . 1 . . . . . 1 . . . . 1 . . . . . . 1 . . . 4 . . . . . . 2 . . . . 4 . . . . Monitor 2 | . . . . . . . . . . . . . . . . . . . . . . . . . 1 . . . . . . . . . . . 1 . . . . Reject 3 | . . . . . . . . . . . . . . . . . . . . . . . . . 1 . . . . . . 1 . . . . 1 . . . . Recyclers 3 | . . . . . . . . . . . . . . . . . . . . . . . . . 1 . . . . . . 1 . . . . 1 . . . . Mask 3 | . . . . . . . . . . . . . . . . . . . . . 1 . . . 1 . . . . . . . . . . . 1 . . . . Tunnel 4 | . 1 . 1 . . . . . 1 . . . . 1 . . . . . . . . . . . . . . . . . . . . . . . . . . . Scanalyzers . | . . . . . . . . . . . . . . . . . . . . . . . . . . . . . . . . . . . . . . . . . . Garrison Access . | . . . . . . . . . . . . . . . . . . . . . . . . . . . . . . . . . . . . . . . . . . Data Cores Recovered 5 | . . . . . . . . . . . . . . . . 1 . . . . 1 . . . . . . . . . . 1 . . . . . . . . 2 Used 1 | . . . . . . . . . . . . . . . . . . . . . . . . . . . . . . . . . . . . . . . . . 1 Hacking Detections 126 | . 8 . 14 . . . 8 3 5 4 7 1 . 8 2 6 1 . . . 10 . 4 1 6 . 9 . . . . 4 . . . . 8 4 2 6 5 Full Trace Events 17 | . 2 . 2 . . . . . . 2 . . . 1 1 . . . . . 1 . . 1 . . 1 . . . . 2 . . . . 2 . . 2 . Feedback Events 3 | . . . . . . . . . . . . . . 1 . . . . . . . . . 1 . . . . . . . . . . . . . . . 1 . Corruption 3 | . . . . . . . . . . . . . . 1 . . . . . . . . . 1 . . . . . . . . . . . . . . . 1 . Feedback Blocked . | . . . . . . . . . . . . . . . . . . . . . . . . . . . . . . . . . . . . . . . . . . Robot Schematics Acquired 5 | . . . . . . . . . . . . . . . . . . . 4 . . . . . . . . . . 1 . . . . . . . . . . . Robots Built 5 | . . . . . . . . . . . . 2 . . . . . . . . . . . . . . 3 . . . . . . . . . . . . . . Authchips . | . . . . . . . . . . . . . . . . . . . . . . . . . . . . . . . . . . . . . . . . . . Time 219 | . . . . . . . . . . . . 67 . . . . . . . . . . . . . . 152 . . . . . . . . . . . . . . Total Robot Build Rating 23 | . . . . . . . . . . . . 8 . . . . . . . . . . . . . . 15 . . . . . . . . . . . . . . Part Schematics Acquired 30 | . . . 3 . . . . . . . . . . . . 2 . . 10 . . . . . . . . . . 15 . . . . . . . . . . . Parts Built 1 | . . . . . . . . . . . . . . . . . . . . . . . . . . . 1 . . . . . . . . . . . . . . Authchips 1 | . . . . . . . . . . . . . . . . . . . . . . . . . . . 1 . . . . . . . . . . . . . . Time 84 | . . . . . . . . . . . . . . . . . . . . . . . . . . . 84 . . . . . . . . . . . . . . Total Part Build Rating 6 | . . . . . . . . . . . . . . . . . . . . . . . . . . . 6 . . . . . . . . . . . . . . Part Studies Acquired 12 | . . . 1 . . . 2 . . . . . . 1 . 1 . . . . . . 1 . . . 3 . . . . 1 . . . . 1 1 . . . Parts Repaired 7 | . 1 . 3 . . . . . . . . . . . . . . . . . . . 3 . . . . . . . . . . . . . . . . . . Time 352 | . 26 . 146 . . . . . . . . . . . . . . . . . . . 180 . . . . . . . . . . . . . . . . . . Parts Recycled . | . . . . . . . . . . . . . . . . . . . . . . . . . . . . . . . . . . . . . . . . . . Recycled Matter . | . . . . . . . . . . . . . . . . . . . . . . . . . . . . . . . . . . . . . . . . . . Retrieved Matter . | . . . . . . . . . . . . . . . . . . . . . . . . . . . . . . . . . . . . . . . . . . Retrieved Components 46 | . 2 . 6 . . . . . 10 . . . . . . . . . . . 1 . . . . . . . . . . 3 . . . . 14 . . 10 . Parts Scanalyzed 8 | . . . 3 . . . . . . . . . . 1 . 2 . . . . . . 1 . . . . . . . . 1 . . . . . . . . . Part Schematics Acquired 5 | . . . 3 . . . . . . . . . . . . 2 . . . . . . . . . . . . . . . . . . . . . . . . . Parts Damaged 1 | . . . . . . . . . . . . . . . . . . . . . . . 1 . . . . . . . . . . . . . . . . . . Bothacking | -11 -10 -10 -9 -9 -9 -8 -8 -8 -8 -8 -8 -7 -7 -7 -7 -7 -7 -7 -7 -6 -6 -6 -6 -6 -6 -6 -6 -6 -6 -6 -5 -5 -5 -5 -5 -4 -4 -3 -2 -1 -1 ------------ Run | Yrd Mat Min Mat Min Exi Min Mat Gar Mat Gar Mat Fac Was Fac Gar Fac Low Low Dat Pro Fac Was Fac Gar Fac Gar Fac Low Low Zio Pro Fac Upp Upp War Pro Fac Res Res Acc Com Used RIF Installer . | . . . . . . . . . . . . . . . . . . . . . . . . . . . . . . . . . . . . . . . . . . Robots Hacked 18 | . 3 . . . . . . . . . . 2 . . . . . . . . . . . . . . . . . 10 . 1 2 . . . . . . . . Non-combat 9 | . 3 . . . . . . . . . . 2 . . . . . . . . . . . . . . . . . 2 . 1 1 . . . . . . . . Combat 9 | . . . . . . . . . . . . . . . . . . . . . . . . . . . . . . 8 . . 1 . . . . . . . . Robot Hacks Applied 18 | . 3 . . . . . . . . . . 2 . . . . . . . . . . . . . . . . . 10 . 1 2 . . . . . . . . parse_system 17 | . 3 . . . . . . . . . . 1 . . . . . . . . . . . . . . . . . 10 . 1 2 . . . . . . . . find_chute 1 | . . . . . . . . . . . . 1 . . . . . . . . . . . . . . . . . . . . . . . . . . . . . Relay Couplers Released 111 | . . . . . . . . 31 . 24 . . . . 21 . . . . . 4 . 3 16 . 9 . . . . . . . . . . . . 3 . . Machine Destruction 104 | . . . . . . . . 31 . 24 . . . . 21 . . . . . . . . 16 . 9 . . . . . . . . . . . . 3 . . Programmers 7 | . . . . . . . . . . . . . . . . . . . . . 4 . 3 . . . . . . . . . . . . . . . . . . Fabnet Peak Effective % . | . . . . . . . . . . . . . . . . . . . . . . . . . . . . . . . . . . . . . . . . . . Robots Rewired 16 | . . . . . . . . 3 . . . 3 . . 4 . . . . . . . . 6 . . . . . . . . . . . . . . . . . Allies Hacked 2 | . . . . . . . . . . . . . 1 . . . . . . . . . 1 . . . . . . . . . . . . . . . . . . Hacks Repelled . | . . . . . . . . . . . . . . . . . . . . . . . . . . . . . . . . . . . . . . . . . . Allies | -11 -10 -10 -9 -9 -9 -8 -8 -8 -8 -8 -8 -7 -7 -7 -7 -7 -7 -7 -7 -6 -6 -6 -6 -6 -6 -6 -6 -6 -6 -6 -5 -5 -5 -5 -5 -4 -4 -3 -2 -1 -1 -------- Run | Yrd Mat Min Mat Min Exi Min Mat Gar Mat Gar Mat Fac Was Fac Gar Fac Low Low Dat Pro Fac Was Fac Gar Fac Gar Fac Low Low Zio Pro Fac Upp Upp War Pro Fac Res Res Acc Com Total Allies 65 | . . 5 . 1 . . 2 6 . 2 . 5 1 . 6 . . 1 . 1 2 18 . 6 . . 4 . . . . 1 . . . . 2 . . 2 . Largest Group 18 | . . 3 3 1 1 . 2 3 3 2 . 5 4 2 4 4 . 1 . 1 1 18 10 5 2 . 4 . . . . 1 . . . . 2 . . 1 . Highest-Rated Group 638 | . . 46 40 31 31 . 20 48 48 64 . 176 250 64 175 68 . 16 . 76 47 638 366 176 156 . 113 . . . . 26 . . . . 102 . . 96 . Highest-Rated Ally 141 | . . 31 16 31 31 . 10 31 16 39 . 40 141 40 95 32 . 16 . 76 47 50 46 119 119 . 29 . . . . 26 . . . . 54 . . 96 . Initial Warlord ECA Mod 45 | . . . . . . . . . 13 13 24 23 23 23 23 33 33 33 33 32 32 32 32 32 43 43 45 45 45 45 44 44 44 44 44 43 43 42 41 40 40 Total Orders 90 | . . . . . . . 1 1 1 . . . 1 2 . 2 . 2 . 1 2 . 2 13 2 1 8 . . . 2 9 12 5 4 11 4 2 1 1 . STAY 21 | . . . . . . . 1 . . . . . . 1 . 1 . . . . . . . 6 1 1 3 . . . . . 3 . 1 1 1 1 . . . FOLLOW 18 | . . . . . . . . . . . . . . 1 . 1 . . . . . . . 5 1 . 3 . . . . 1 2 1 . 3 . . . . . EXPLORE 16 | . . . . . . . . . . . . . . . . . . . . . . . 1 1 . . 1 . . . 1 2 2 1 2 1 2 . 1 1 . RETURN 35 | . . . . . . . . 1 1 . . . 1 . . . . 2 . 1 2 . 1 1 . . 1 . . . 1 6 5 3 1 6 1 1 . . . Ally Attacks 705 | . . 22 51 16 . . . 18 28 22 . 8 20 6 30 68 . 6 . 1 14 128 68 75 15 . 19 . . . . . 28 8 1 33 10 . . 10 . Total Damage 16622 | . . 333 592 171 . . . 288 298 247 . 288 363 127 1223 881 . 22 . 8 139 5047 1323 2723 648 . 341 . . . . . 282 146 24 587 228 . . 293 . Kills 94 | . . 3 9 6 . . . 7 2 2 . 1 1 1 11 9 . 1 . . 2 10 6 9 1 . 1 . . . . . 3 . . 6 3 . . . . Allies Corrupted 3 | . . . . . . . . . . . . . . . . . . . . . . . 1 . . . 1 . . . . . . . . . . . . 1 . Allies Melted 5 | . . . . . . . . . 1 . . . . . . . . . . . . . . . 1 . . . . . . . . . . . . . 3 . . Intel | -11 -10 -10 -9 -9 -9 -8 -8 -8 -8 -8 -8 -7 -7 -7 -7 -7 -7 -7 -7 -6 -6 -6 -6 -6 -6 -6 -6 -6 -6 -6 -5 -5 -5 -5 -5 -4 -4 -3 -2 -1 -1 ------- Run | Yrd Mat Min Mat Min Exi Min Mat Gar Mat Gar Mat Fac Was Fac Gar Fac Low Low Dat Pro Fac Was Fac Gar Fac Gar Fac Low Low Zio Pro Fac Upp Upp War Pro Fac Res Res Acc Com Active Infowar (turns) 37148 | . 982 . . . . . . . . . . . . 2 . 1839 1394 1914 179 378 392 925 956 421 697 6 2195 1196 809 3409 1894 1946 759 524 1124 2990 2051 677 4601 1611 1277 Optics 26970 | . . . . . . . . . . . . . . . . 1839 1394 1914 179 96 . . . . . . 2 . 119 3409 1796 1842 759 524 1124 2990 2051 677 3367 1611 1277 Sensors 5657 | . . . . . . . . . . . . . . 2 . . 1038 1058 179 378 . . . . . . . . . 146 . . . . . . 14 . 2842 . . IFF 2 | . . . . . . . . . . . . . . . . . . . . . 2 . . . . . . . . . . . . . . . . . . . . Terrain 13694 | . . . . . . . . . . . . . . . . . . 1 . . . . . . 697 6 692 929 688 495 1523 84 181 450 5 2434 202 367 3322 1611 7 Structural 2 | . . . . . . . . . . . . . . . . 2 . . . . . . . . . . . . . . . . . . . . . . . . . Traps 1 | . . . . . . . . . . . . . . . . . . . . . . . . . . . 1 . . . . . . . . . . . . . . Seismic 982 | . 982 . . . . . . . . . . . . . . . . . . . . . . . . . . . . . . . . . . . . . . . . Decoding 2716 | . . . . . . . . . . . . . . . . . . . . . . . . . . . . . . 2 . . . . . 140 2051 523 . . . T.N.C. 316 | . . . . . . . . . . . . . . . . . . . . . 316 . . . . . . . . . . . . . . . . . . . . Machine Analysis 1 | . . . . . . . . . . . . . . . . . . . . . . . . . . . . . . . . . . . . . . . 1 . . Triangulation 1355 | . . . . . . . . . . . . . . . . . . . . . . 925 430 . . . . . . . . . . . . . . . . . . Cloaking 3 | . . . . . . . . . . . . . . . . . . . . . . . . . . . . . . . . . . . . . . . 3 . . Jamming 8151 | . . . . . . . . . . . . . . . . . . . . . 73 . 526 421 . . 1952 267 2 293 . 905 96 520 417 137 805 . . 948 789 ECM 12 | . . . . . . . . . . . . . . . . . . . . . 1 . . . . . . . . 6 5 . . . . . . . . . . Robot Analysis Total 7 | . 1 . 2 . . . 4 . . . . . . . . . . . . . . . . . . . . . . . . . . . . . . . . . . Derelict Logs Recovered 16 | . . 1 . 1 . . . . . . . . . . . . 1 1 . 1 . . . . . . . 1 2 1 2 . 2 . . 3 . . . . . Drone Launches 81 | . . . . . . . . 3 6 . . . 8 . . . . 9 . 1 11 . 2 1 . 2 1 . . . 2 7 12 6 . 4 3 1 1 1 . Drone Recoveries 68 | . . . . . . . . 3 6 . . . 7 . . . . 9 . 1 6 . 2 1 . 1 1 . . . 2 7 11 4 2 2 1 1 1 . . Decoded 0b10 Intel 75 | . . . . . . . . . . . . . . . . . . . . . . . . . . . . . . . . . . . . . 64 11 . . . Garrisons 1 | . . . . . . . . . . . . . . . . . . . . . . . . . . . . . . . . . . . . . 1 . . . . Patrols 26 | . . . . . . . . . . . . . . . . . . . . . . . . . . . . . . . . . . . . . 17 9 . . . Investigations 2 | . . . . . . . . . . . . . . . . . . . . . . . . . . . . . . . . . . . . . 2 . . . . Reinforcements 16 | . . . . . . . . . . . . . . . . . . . . . . . . . . . . . . . . . . . . . 16 . . . . Guards 30 | . . . . . . . . . . . . . . . . . . . . . . . . . . . . . . . . . . . . . 28 2 . . . Exploration | -11 -10 -10 -9 -9 -9 -8 -8 -8 -8 -8 -8 -7 -7 -7 -7 -7 -7 -7 -7 -6 -6 -6 -6 -6 -6 -6 -6 -6 -6 -6 -5 -5 -5 -5 -5 -4 -4 -3 -2 -1 -1 ------------- Run | Yrd Mat Min Mat Min Exi Min Mat Gar Mat Gar Mat Fac Was Fac Gar Fac Low Low Dat Pro Fac Was Fac Gar Fac Gar Fac Low Low Zio Pro Fac Upp Upp War Pro Fac Res Res Acc Com Turns Passed 80381 | 156 4533 1245 9274 1655 529 1099 2431 2372 1563 1610 1294 265 330 1719 3024 2401 1394 1914 179 1442 3597 1491 1177 2726 1046 869 2450 1447 887 3409 2205 2764 759 524 1124 2990 2051 677 4871 1611 1277 Spaces Moved 30646 | 72 1848 661 2051 656 216 434 934 934 596 611 476 100 119 616 1112 800 574 700 82 448 1216 632 401 853 398 266 1016 536 337 1499 652 1069 395 283 549 925 851 344 2781 830 773 Core 85 | 5 . . . . . . . . . . . . . . . . . . . . . 80 . . . . . . . . . . . . . . . . . . . Treads 26287 | 67 1848 661 2051 656 216 434 934 934 596 611 476 100 119 616 1112 800 574 700 82 448 1216 552 401 853 398 266 1016 536 337 1499 652 258 . . . . 1 . 2664 830 773 Legs 1 | . . . . . . . . . . . . . . . . . . . . . . . . . . . . . . . . 1 . . . . . . . . . Wheels 4273 | . . . . . . . . . . . . . . . . . . . . . . . . . . . . . . . . 810 395 283 549 925 850 344 117 . . Hover . | . . . . . . . . . . . . . . . . . . . . . . . . . . . . . . . . . . . . . . . . . . Flight . | . . . . . . . . . . . . . . . . . . . . . . . . . . . . . . . . . . . . . . . . . . Fastest Speed 50 | 50 160 160 160 240 240 240 200 200 200 200 200 200 200 200 200 220 220 220 220 220 240 50 240 220 220 213 200 210 220 220 220 130 135 145 145 145 137 130 100 141 141 Average Speed 199 | 152 161 160 231 240 240 240 201 200 200 200 200 200 235 230 241 231 220 224 220 289 240 212 240 227 220 219 208 228 220 220 242 190 150 145 146 165 151 143 149 143 141 Slowest Speed 750 | 160 240 160 240 240 240 240 240 240 240 200 200 200 240 240 280 280 220 280 220 320 240 240 240 240 220 320 240 266 220 220 320 750 160 160 295 205 485 145 155 227 141 Overloaded Moves . | . . . . . . . . . . . . . . . . . . . . . . . . . . . . . . . . . . . . . . . . . . Propulsion Burnouts . | . . . . . . . . . . . . . . . . . . . . . . . . . . . . . . . . . . . . . . . . . . Robots Hopped . | . . . . . . . . . . . . . . . . . . . . . . . . . . . . . . . . . . . . . . . . . . Potential Cave-ins 49 | . . . . . . . . . . . . . . . . . . . . 3 . . . . . . . . . . 3 8 . . . . 13 . 11 11 . Cave-ins Triggered 6 | . . . 1 . . . . . . . . . . . . . . . . . . . . . . . . . . . . . . . . . 1 . 4 . . Exploration Rate (%) 60 | 5 99 95 98 98 60 93 58 95 55 81 53 4 85 17 95 16 73 80 74 63 33 96 10 98 12 22 27 70 54 89 91 43 75 49 95 97 26 9 89 27 30 Regions Visited 41 Branch Regions 17 Pre-discovered Areas 17 | . 1 . 5 1 1 . 2 . 1 . 1 . . 1 . . 1 . 1 . . . . . . . . 1 . . . . . . . 1 . . . . . Known Exits Taken 20 | . . 1 1 . . 1 1 . 1 . 1 . . 1 . 1 1 1 1 1 . . 1 . 1 . 1 1 1 . 1 1 . . . . . . 1 . . Unknown Exits Taken 12 | 1 1 . . 1 1 . . . . . . . . . . . . . . . . . . . . . . . . 1 . . 1 1 1 1 1 1 . 1 . Scrap Searched 27 | . . 1 . 2 . 2 . . . . . . . . . . 2 5 . 1 . . . . . . . 2 1 3 2 . 2 2 . 2 . . . . . Spaces Dug 596 | . 4 14 30 88 . 8 7 7 3 57 7 . . 8 . 2 1 . . 3 14 . 3 43 15 11 28 1 12 . 8 55 31 3 5 11 41 13 32 29 2 Terrain Destroyed 2987 | . 4 25 462 119 . 50 41 86 180 64 130 17 3 20 4 284 5 5 . 15 24 1 59 210 43 38 54 69 28 . 120 301 51 7 15 42 181 19 146 60 5 Melee 40 | . 4 5 . . . . 6 . . . . . . 8 . 1 1 . . 3 . . . . . . 4 . . . . 6 . 2 . . . . . . . Projectile 807 | . . . 57 2 . 1 3 . 36 5 18 . 3 12 4 7 4 5 . 12 24 1 16 25 43 31 43 28 28 . 50 75 19 4 8 19 77 19 63 60 5 AOE 2139 | . . 20 405 117 . 49 32 86 144 59 112 17 . . . 276 . . . . . . 43 185 . 7 7 41 . . 70 220 32 . 7 23 104 . 83 . . Terrain Rammed . | . . . . . . . . . . . . . . . . . . . . . . . . . . . . . . . . . . . . . . . . . . Walls Destroyed . | . . . . . . . . . . . . . . . . . . . . . . . . . . . . . . . . . . . . . . . . . . Machines Disabled . | . . . . . . . . . . . . . . . . . . . . . . . . . . . . . . . . . . . . . . . . . . Actions | -11 -10 -10 -9 -9 -9 -8 -8 -8 -8 -8 -8 -7 -7 -7 -7 -7 -7 -7 -7 -6 -6 -6 -6 -6 -6 -6 -6 -6 -6 -6 -5 -5 -5 -5 -5 -4 -4 -3 -2 -1 -1 --------- Run | Yrd Mat Min Mat Min Exi Min Mat Gar Mat Gar Mat Fac Was Fac Gar Fac Low Low Dat Pro Fac Was Fac Gar Fac Gar Fac Low Low Zio Pro Fac Upp Upp War Pro Fac Res Res Acc Com Total 46202 | 96 3189 771 6218 714 230 469 1273 1237 802 827 689 143 169 822 1409 1137 663 984 81 540 1642 741 569 1416 523 458 1236 713 435 1606 1190 1585 538 365 845 2355 1415 491 3432 1242 942 Wait 9892 | 1 937 38 3809 19 4 9 172 58 70 36 73 7 26 89 96 136 25 211 . 41 200 16 95 227 45 74 71 128 46 55 447 157 72 50 165 1308 324 64 225 197 69 Move 30612 | 71 1847 660 2050 655 215 433 934 933 596 610 475 100 118 615 1111 799 573 699 81 447 1216 631 401 852 398 265 1015 535 336 1498 651 1069 394 282 548 924 850 343 2780 829 773 Hop . | . . . . . . . . . . . . . . . . . . . . . . . . . . . . . . . . . . . . . . . . . . Pick Up 387 | 7 26 5 14 6 3 2 7 8 3 7 8 1 4 14 14 14 10 7 . 3 15 23 8 18 4 3 8 . 4 8 . 14 7 2 16 13 9 10 48 11 3 Fast Attach 222 | 6 2 . 2 . . . 3 2 2 3 2 . 1 3 18 4 3 4 . . 7 25 3 11 4 8 4 . . 3 5 30 2 3 6 4 12 1 28 9 2 Attach 227 | . 3 . 2 1 1 1 5 10 1 4 . 2 6 8 17 11 2 2 . 5 8 9 4 13 . 1 2 3 . 1 3 27 12 1 8 17 8 7 11 6 5 Detach 152 | . 3 . . . 2 . 2 . . 1 . . 2 . 19 4 1 2 . 1 9 10 3 7 2 1 4 . . 4 3 24 6 . 3 7 6 4 14 5 3 Swap 950 | . 24 4 45 8 1 6 30 34 24 25 21 5 4 24 9 38 17 25 . 6 62 4 17 56 18 31 48 21 11 16 20 50 10 8 24 18 50 10 73 36 17 Drop 439 | . 19 7 12 4 4 1 12 15 11 9 17 . 6 17 33 9 8 8 . . 14 9 9 30 6 5 12 . 2 10 3 7 1 2 22 14 13 9 58 19 2 Fire 2734 | 11 121 25 275 16 . 14 96 128 91 121 88 16 2 35 29 113 21 26 . 29 104 11 29 143 46 64 63 26 35 . 57 195 30 9 53 49 133 42 191 129 68 Melee 164 | . 19 31 1 . . 2 10 6 . 1 . 12 . 11 19 1 1 . . 8 . 3 . . . . 7 . . 11 . 11 2 8 . . . . . . . Ram 4 | . . . . . . . . . . . . . . . . . . . . . . . . . . . . . . . . 1 . . . . 2 1 . . . Kick . | . . . . . . . . . . . . . . . . . . . . . . . . . . . . . . . . . . . . . . . . . . Crush 60 | . 6 1 8 5 . 1 2 . 4 . 1 . . 2 . 8 2 . . . 7 . . . . 4 2 . 1 . 1 . . . . . . . 4 1 . Escape Stasis 60 | . . . . . . . . 8 . 10 . . . 4 22 . . . . . . . . 6 . 2 . . . . . . . . . . 8 . . . . Rewire 111 | . . . . . . . . 35 . . . . . . 22 . . . . . . . . 53 . . . . . . . . . . . 1 . . . . . Trap 188 | . 182 . . . . . . . . . 4 . . . . . . . . . . . . . . . . . . . . . 2 . . . . . . . . Miscellaneous . | . . . . . . . . . . . . . . . . . . . . . . . . . . . . . . . . . . . . . . . . . . Route ------- -11/Scrapyard -10/Materials (discovered 5 exits: *Mat x3 / *Min / *Sub) -10/Mines (discovered 2 exits: *Mat x2) -9/Materials (discovered 4 exits: *Mat x3 / *Min) -9/Mines (discovered 3 exits: *Mat x2 / *Exi) -9/Exiles -8/Mines (discovered 2 exits: *Mat x2) -8/Materials (discovered 4 exits: *Fac x3 / Gar) -8/Garrison (discovered 4 exits: *Mat x4) -8/Materials (discovered 3 exits: *Fac x2 / Gar) -8/Garrison (discovered 3 exits: *Mat x3) -8/Materials -7/Factory (discovered 5 exits: Fac x3 / Low x2) -7/Waste -7/Factory (discovered 6 exits: *Fac / Sto x2 / Low x2 / Gar) -7/Garrison (discovered 4 exits: *Fac x4) -7/Factory (discovered 4 exits: Sto x2 / *Low x2) -7/Lower Caves -7/Lower Caves (discovered 2 exits: Fac / *Dat) -7/Data Miner -6/Proximity Caves -6/Factory (discovered 2 exits: *Fac / *Low) -6/Waste -6/Factory -6/Garrison (discovered 3 exits: *Fac x3) -6/Factory (discovered 2 exits: *Low / Gar) -6/Garrison -6/Factory (discovered 3 exits: *Fac / *Low x2) -6/Lower Caves -6/Lower Caves (discovered 2 exits: Fac / *Zio) -6/Zion -5/Proximity Caves -5/Factory (discovered 5 exits: *Fac / *Upp x2 / Ext x2) -5/Upper Caves -5/Upper Caves (discovered 2 exits: *Fac / *War) -5/Warlord -4/Proximity Caves -4/Factory (discovered 3 exits: *Res / Upp x2) -3/Research (discovered 4 exits: *Res / Arm / Qua x2) -2/Research (discovered 5 exits: *Acc x3 / *Tes x2) -1/Access -1/Command Free Derelict Territories History --------- Turn | Location | Event 2 | -11/Scrapyard | Met Revision 17 4 | -11/Scrapyard | Discovered new exit (range 15) 157 | -11/Scrapyard | Entered Materials 311 | -10/Materials | Build established: Mutant 470 | -10/Materials | Repaired Lgt. Treads 775 | -10/Materials | Discovered new exit (range 15) 1833 | -10/Materials | Discovered new exit (range 16) 2586 | -10/Materials | Discovered new exit (range 6) 2812 | -10/Materials | Discovered new exit (range 10) 2852 | -10/Materials | Identified exit to Materials 2899 | -10/Materials | Identified exit to Subcaves 2935 | -10/Materials | Learned Storage emergency access door positions 3010 | -10/Materials | Learned 4 Recycling zone layouts 3047 | -10/Materials | Learned 2 Materials zone layouts 4690 | -10/Materials | Entered Mines 4741 | -10/Mines | Met a Derelict shopkeep closing up shop 4829 | -10/Mines | Received a Rocket Launcher from a helpful Derelict 4871 | -10/Mines | Discovered exit to Materials (range 15) 5006 | -10/Mines | Learned location of 2 exits from Materials 5290 | -10/Mines | Excavation squad dispatched 5290 | -10/Mines | A large section of the Mines collapsed 5580 | -10/Mines | Assisted by bots powering up and referring to "LRC-V3" 5604 | -10/Mines | Discovered exit to Materials (range 14) 5935 | -10/Mines | Entered Materials 5935 | -9/Materials | Accompanied by 3 allies 5935 | -9/Materials | Evolved 2 slots: Propulsion x1, Utility x1 5936 | -9/Materials | Identified exit to Materials 5936 | -9/Materials | Identified exit to Mines 7032 | -9/Materials | Build established: Scavenger-Mutant 7431 | -9/Materials | Learned 4 Recycling zone layouts 7570 | -9/Materials | Learned Storage emergency access door positions 7634 | -9/Materials | Learned location of Zion (-6) 7657 | -9/Materials | Central database locked down 7667 | -9/Materials | Loaded intel: 12 terminal locations 7712 | -9/Materials | Learned Storage stockpile data 7767 | -9/Materials | Learned Recycling recycling unit intel 10514 | -9/Materials | Repaired Beamcaster? 10653 | -9/Materials | Build established: Mutant 10785 | -9/Materials | Repaired Corrupted Beamcaster 11661 | -9/Materials | Repaired Seismic Detector 12735 | -9/Materials | First assault squad dispatched 14924 | -9/Materials | Crushed by falling debris 14924 | -9/Materials | Core integrity fell below 50% 14955 | -9/Materials | Sterilization system engaged 14955 | -9/Materials | Non-combat units ordered to evacuate 15055 | -9/Materials | Combat units ordered to evacuate 15209 | -9/Materials | Entered Mines 15220 | -9/Mines | Met a Derelict bent on vengeance 15298 | -9/Mines | Discovered exit to Materials (range 9) 15426 | -9/Mines | Escorted by a lone wolf Derelict 15544 | -9/Mines | Discovered exit to Materials (range 12) 15600 | -9/Mines | Found the Drone Emporium 15612 | -9/Mines | Found Prototype Device 15612 | -9/Mines | Identified Splice Drone Bay 16025 | -9/Mines | Assembled infested the area 16339 | -9/Mines | Destroyed 8 combat bots 16555 | -9/Mines | Found a damaged Exp. Sensor Array with a note attached 16567 | -9/Mines | Found Prototype Device 16674 | -9/Mines | Build established: Scavenger-Mutant 16701 | -9/Mines | Deemed a non-threat by the Exiles lab entrance 16703 | -9/Mines | Discovered new exit (range 5) 16864 | -9/Mines | Entered Exiles 16864 | -9/Exiles | Accompanied by 1 ally 16935 | -9/Exiles | Met 8R-AWN 16979 | -9/Exiles | Met EX-HEX 17048 | -9/Exiles | Met EX-BIN 17082 | -9/Exiles | Aligned with FarCom system 17084 | -9/Exiles | Given EX-Vault access code 17139 | -9/Exiles | Opened EX-Vault 17159 | -9/Exiles | Found AWS/Autocannon 17213 | -9/Exiles | Warned to stay clear of 0b10 Research branches 17232 | -9/Exiles | Build established: Mutant 17275 | -9/Exiles | Met EX-DEC 17374 | -9/Exiles | Discovered new exit (range 10) 17393 | -9/Exiles | Left Exiles lab with AWS/Autocannon 17393 | -9/Exiles | Entered Mines 17802 | -8/Mines | Discovered exit to Materials (range 6) 17863 | -8/Mines | Build established: Scavenger-Mutant 18406 | -8/Mines | Discovered exit to Materials (range 3) 18492 | -8/Mines | Entered Materials 18492 | -8/Materials | Evolved 2 slots: Utility x2 19331 | -8/Materials | Discovered new exit (range 15) 19808 | -8/Materials | Learned Storage machine intel 19879 | -8/Materials | Learned location of 1 exit from Recycling 19989 | -8/Materials | Identified exit to Factory 20028 | -8/Materials | Learned location of 1 exit from Lower Caves 20080 | -8/Materials | Learned 2 Lower Caves zone layouts 20112 | -8/Materials | Learned location of 2 exits from Lower Caves 20264 | -8/Materials | Learned location of 2 exits from Lower Caves 20817 | -8/Materials | Garrison activated, responded to threat 20923 | -8/Materials | Identified exit to Garrison 20923 | -8/Materials | Entered Garrison 21021 | -8/Garrison | Phase Generator disabled 21115 | -8/Garrison | Triggered checkpoint 21198 | -8/Garrison | Garrison Relay disabled 21323 | -8/Garrison | System corruption reached 10% 21373 | -8/Garrison | Garrison Relay disabled 21377 | -8/Garrison | Garrison Relay disabled 21381 | -8/Garrison | Garrison Relay disabled 21560 | -8/Garrison | Lost 3 parts (1p1n1u) 21581 | -8/Garrison | Triggered checkpoint 21655 | -8/Garrison | Triggered checkpoint 21717 | -8/Garrison | Discovered new exit (range 14) 21784 | -8/Garrison | Rescued a captive Derelict 21856 | -8/Garrison | Garrison Relay disabled 21867 | -8/Garrison | Triggered checkpoint 21890 | -8/Garrison | Discovered new exit (range 3) 21987 | -8/Garrison | Triggered checkpoint 22119 | -8/Garrison | Triggered checkpoint 22202 | -8/Garrison | Garrison Relay disabled 22230 | -8/Garrison | Discovered new exit (range 9) 22692 | -8/Garrison | Discovered new exit (range 10) 22830 | -8/Garrison | Learned Materials security intel 22891 | -8/Garrison | Triggered checkpoint 22938 | -8/Garrison | Garrison Relay disabled 22963 | -8/Garrison | Triggered checkpoint 23295 | -8/Garrison | Entered Materials 23295 | -8/Materials | Accompanied by 3 allies 23695 | -8/Materials | First assault squad dispatched 23756 | -8/Materials | Core integrity fell below 50% 23904 | -8/Materials | Discovered exit to Factory (range 13) 24511 | -8/Materials | Discovered exit to Factory (range 16) 24858 | -8/Materials | Identified exit to Garrison 24858 | -8/Materials | Entered Garrison 24949 | -8/Garrison | Rescued a captive Derelict 24949 | -8/Garrison | Rescued a captive Derelict 25026 | -8/Garrison | Triggered checkpoint 25056 | -8/Garrison | Garrison Relay disabled 25214 | -8/Garrison | Triggered checkpoint 25307 | -8/Garrison | Lost 5 parts (1n3u1w) 25410 | -8/Garrison | Triggered checkpoint 25447 | -8/Garrison | Discovered new exit (range 15) 25629 | -8/Garrison | Garrison Relay disabled 25708 | -8/Garrison | Triggered checkpoint 25782 | -8/Garrison | Triggered checkpoint 25875 | -8/Garrison | Discovered new exit (range 34) 25875 | -8/Garrison | Discovered new exit (range 64) 25875 | -8/Garrison | Discovered new exit (range 34) 25933 | -8/Garrison | Triggered checkpoint 25978 | -8/Garrison | Garrison Relay disabled 26114 | -8/Garrison | Garrison Relay disabled 26285 | -8/Garrison | Garrison Relay disabled 26468 | -8/Garrison | Entered Materials 27465 | -8/Materials | Learned location of 1 exit from Extension 27473 | -8/Materials | Core integrity fell below 20% 27495 | -8/Materials | Learned location of 3 exits from Factory 27517 | -8/Materials | Learned location of 1 exit from Recycling 27530 | -8/Materials | Learned Storage security intel 27534 | -8/Materials | Learned location of 1 exit from Lower Caves 27545 | -8/Materials | Discovered exit to Factory (range 16) 27550 | -8/Materials | Learned 2 Lower Caves zone layouts 27578 | -8/Materials | Learned location of Recycling (-7) 27668 | -8/Materials | First assault squad dispatched 27762 | -8/Materials | Entered Factory 27762 | -7/Factory | Evolved 2 slots: Utility x1, Weapon x1 27763 | -7/Factory | Identified exit to Lower Caves 27764 | -7/Factory | Identified exit to Factory 27900 | -7/Factory | Fabricated P-60 Hacker? 28027 | -7/Factory | Sucked down chute 28027 | -7/Factory | Entered Waste 28042 | -7/Waste | EMP discharged 28042 | -7/Waste | System corruption reached 10% 28048 | -7/Waste | Spotted C-40 Crusher 28078 | -7/Waste | Crushed by Compactor (0 parts destroyed, 1 dropped) 28086 | -7/Waste | Destroyed C-40 Crusher 28089 | -7/Waste | Spotted C-40 Crusher 28103 | -7/Waste | Destroyed C-40 Crusher 28142 | -7/Waste | EMP discharged 28147 | -7/Waste | 5 allies followed down the chute 28150 | -7/Waste | Spotted C-40 Crusher 28153 | -7/Waste | Spotted C-40 Crusher 28156 | -7/Waste | Spotted C-40 Crusher 28163 | -7/Waste | Hacker 4a assimilated hostile C-40 Crusher 28172 | -7/Waste | Allies destroyed C-40 Crusher 28180 | -7/Waste | Spotted C-40 Crusher 28188 | -7/Waste | Destroyed C-40 Crusher 28192 | -7/Waste | Destroyed C-40 Crusher 28211 | -7/Waste | Lost 4 allies 28212 | -7/Waste | Found Unknown Protection 28242 | -7/Waste | EMP discharged 28300 | -7/Waste | Discovered new exit (range 12) 28342 | -7/Waste | EMP discharged 28342 | -7/Waste | System corruption reached 30% 28357 | -7/Waste | Entered Factory 28357 | -7/Factory | Accompanied by 2 allies 28507 | -7/Factory | Build established: Scavenger-Tank 29847 | -7/Factory | Discovered exit to Factory (range 8) 29900 | -7/Factory | Identified exit to Storage 30033 | -7/Factory | Identified exit to Garrison 30053 | -7/Factory | Central database locked down 30053 | -7/Factory | Identified Exp. Sensor Array 30076 | -7/Factory | Entered Garrison 30172 | -7/Garrison | Triggered checkpoint 30247 | -7/Garrison | Garrison Relay disabled 30546 | -7/Garrison | Discovered new exit (range 15) 30621 | -7/Garrison | Triggered checkpoint 30680 | -7/Garrison | Garrison Relay disabled 30814 | -7/Garrison | Garrison Relay disabled 30916 | -7/Garrison | Triggered checkpoint 31240 | -7/Garrison | Found embedded Infiltrators 31440 | -7/Garrison | Triggered checkpoint 31576 | -7/Garrison | Triggered checkpoint 31646 | -7/Garrison | Garrison Relay disabled 31747 | -7/Garrison | Discovered new exit (range 10) 31776 | -7/Garrison | Triggered checkpoint 31802 | -7/Garrison | Discovered new exit (range 6) 32021 | -7/Garrison | Garrison Relay disabled 32093 | -7/Garrison | Phase Generator disabled 32135 | -7/Garrison | Met a derelict Sapper fleeing the area 32345 | -7/Garrison | Build established: Hacker-Tank 32350 | -7/Garrison | Discovered new exit (range 14) 32948 | -7/Garrison | Build established: Hauler-Tank 33100 | -7/Garrison | Entered Factory 33100 | -7/Factory | Accompanied by 4 allies 33182 | -7/Factory | Watched by a mysterious "MATRIX" hacker. 33210 | -7/Factory | Allied Derelicts emerged from ambush trap array 33500 | -7/Factory | First assault squad dispatched 33550 | -7/Factory | AWS/Autocannon suddenly broke down 33569 | -7/Factory | Garrison activated, responded to threat 33751 | -7/Factory | Identified Damper Plating 34147 | -7/Factory | Garrison activated, responded to threat 34252 | -7/Factory | Destroyed 8 combat bots 35217 | -7/Factory | High security lockdown imminent 35253 | -7/Factory | Destroyed 9 combat bots 35297 | -7/Factory | High security lockdown engaged 35496 | -7/Factory | Destroyed 11 combat bots 35501 | -7/Factory | Entered Lower Caves 35502 | -7/Lower Caves | Identified exit to Lower Caves 35508 | -7/Lower Caves | Met a Warlord Commander 35508 | -7/Lower Caves | Lost 4 parts (1u3w) 35509 | -7/Lower Caves | Learned location of Warlord (-5) 35510 | -7/Lower Caves | Warlord Commander delivered Encrypted Comm Array 35514 | -7/Lower Caves | Found Encrypted Comm Array 36177 | -7/Lower Caves | Build established: Hauler-Skirmisher 36304 | -7/Lower Caves | Learned Factory security intel 36895 | -7/Lower Caves | Entered another Lower Caves area 36896 | -7/Lower Caves | Identified exit to Data Miner 37129 | -7/Lower Caves | Spotted B-75 Beast 37285 | -7/Lower Caves | Destroyed B-75 Beast 37544 | -7/Lower Caves | Learned Factory garrison access intel 38215 | -7/Lower Caves | Build established: Hauler-Tank 38404 | -7/Lower Caves | Attracted the attention of an 0b10 checkpoint 38809 | -7/Lower Caves | Entered Data Miner 38809 | -7/Data Miner | Discovered new exit (range 6) 38842 | -7/Data Miner | Met Data Miner 38900 | -7/Data Miner | Learned location of Section 7 (-3) 38900 | -7/Data Miner | Acquired the access code to Warlord's prototype stash 38935 | -7/Data Miner | Received God Mode back door access code from Data Miner 38985 | -7/Data Miner | Identified exit to Proximity Caves 38988 | -7/Data Miner | Entered Proximity Caves 39359 | -6/Proximity Caves | Spotted B-75 Beast 39394 | -6/Proximity Caves | Destroyed B-75 Beast 39418 | -6/Proximity Caves | Lost 5 parts (1n3u1w) 39676 | -6/Proximity Caves | Build established: Hauler-Mutant 39833 | -6/Proximity Caves | Core integrity fell below 50% 40430 | -6/Proximity Caves | Entered Factory 40430 | -6/Factory | Evolved 2 slots: Propulsion x1, Utility x1 40432 | -6/Factory | Loaded intel: 4 garrison access locations 40841 | -6/Factory | Build established: Hauler-Tank 41143 | -6/Factory | Discovered new exit (range 10) 41760 | -6/Factory | Found Unknown Protection 41760 | -6/Factory | Identified Hvy. Insulated Plating 42623 | -6/Factory | Discovered new exit (range 16) 42943 | -6/Factory | Lost 3 allies 44027 | -6/Factory | Sucked down chute 44027 | -6/Factory | Entered Waste 44048 | -6/Waste | Spotted C-40 Crusher 44058 | -6/Waste | Crushed by Compactor (1 part destroyed, 1 dropped) 44061 | -6/Waste | Crushed by Compactor (0 parts destroyed, 1 dropped) 44064 | -6/Waste | Crushed by Compactor (0 parts destroyed, 1 dropped) 44076 | -6/Waste | Crushed by Compactor (1 part destroyed, 1 dropped) 44082 | -6/Waste | Crushed by Compactor (1 part destroyed, 1 dropped) 44085 | -6/Waste | Crushed by Compactor (0 parts destroyed, 1 dropped) 44088 | -6/Waste | Crushed by Compactor (0 parts destroyed, 1 dropped) 44091 | -6/Waste | Crushed by Compactor (0 parts destroyed, 1 dropped) 44094 | -6/Waste | Crushed by Compactor (1 part destroyed) 44107 | -6/Waste | Crushed by Compactor (1 part destroyed, 1 dropped) 44110 | -6/Waste | Crushed by Compactor (0 parts destroyed, 1 dropped) 44110 | -6/Waste | Spotted C-40 Crusher 44113 | -6/Waste | Crushed by Compactor (0 parts destroyed, 1 dropped) 44118 | -6/Waste | Released all parts (4) 44138 | -6/Waste | Warlord forces began an assault 44148 | -6/Waste | Lost 10 parts (1p3n2u4w) 44150 | -6/Waste | Allies destroyed C-40 Crusher 44156 | -6/Waste | Allies destroyed C-40 Crusher 44244 | -6/Waste | Spotted C-40 Crusher 44249 | -6/Waste | Allies destroyed C-40 Crusher 44408 | -6/Waste | Found Unknown Device 44408 | -6/Waste | Identified Quantum Capacitor 44469 | -6/Waste | Build established: Hauler-Mutant 44574 | -6/Waste | Discovered new exit (range 12) 45328 | -6/Waste | Build established: Hauler-Tank 45518 | -6/Waste | Entered Factory 45518 | -6/Factory | Accompanied by 10 allies 46262 | -6/Factory | Repaired Quantum Capacitor 46340 | -6/Factory | Repaired Antimatter Reactor 46408 | -6/Factory | Repaired Imp. Kinecellerator 46412 | -6/Factory | P-70 Sage assimilated allied 5I-JBS(m) 46695 | -6/Factory | Identified exit to Garrison 46695 | -6/Factory | Entered Garrison 46695 | -6/Garrison | Accompanied by 5 allies 46727 | -6/Garrison | Heavy support dispatched to Factory 46767 | -6/Garrison | Triggered checkpoint 46912 | -6/Garrison | Garrison Relay disabled 47053 | -6/Garrison | Triggered checkpoint 47065 | -6/Garrison | Spotted B-75 Beast 47083 | -6/Garrison | Destroyed B-75 Beast 47131 | -6/Garrison | Lost 3 allies 47153 | -6/Garrison | Triggered checkpoint 47280 | -6/Garrison | Heavy support dispatched to Factory 47602 | -6/Garrison | Triggered checkpoint 47751 | -6/Garrison | Garrison Relay disabled 47765 | -6/Garrison | H-XX Assembler disabled 47911 | -6/Garrison | Discovered new exit (range 4) 47995 | -6/Garrison | Phase Generator disabled 48011 | -6/Garrison | Spotted B-75 Beast 48054 | -6/Garrison | Destroyed B-75 Beast 48203 | -6/Garrison | Triggered checkpoint 48216 | -6/Garrison | Triggered checkpoint 48446 | -6/Garrison | Garrison Relay disabled 48493 | -6/Garrison | Triggered checkpoint 48523 | -6/Garrison | Triggered checkpoint 48572 | -6/Garrison | Triggered checkpoint 48600 | -6/Garrison | Triggered checkpoint 48810 | -6/Garrison | Found Quantum Capacitor 49021 | -6/Garrison | Discovered new exit (range 15) 49125 | -6/Garrison | Discovered new exit (range 38) 49201 | -6/Garrison | Triggered checkpoint 49267 | -6/Garrison | Garrison Relay disabled 49281 | -6/Garrison | Spotted Executioner 49305 | -6/Garrison | Allies destroyed Executioner 49325 | -6/Garrison | Rewired Executioner 49421 | -6/Garrison | Entered Factory 49421 | -6/Factory | Accompanied by 2 allies 49575 | -6/Factory | Found Prototype Device 49575 | -6/Factory | Identified Adv. Kinecellerator 49771 | -6/Factory | First assault squad dispatched 49896 | -6/Factory | Discovered new exit (range 13) 49960 | -6/Factory | Incoming assault squad redirected 50146 | -6/Factory | Incoming assault squad redirected 50156 | -6/Factory | Incoming investigation squad redirected 50467 | -6/Factory | Identified exit to Garrison 50467 | -6/Factory | Entered Garrison 50483 | -6/Garrison | Triggered checkpoint 50592 | -6/Garrison | Discovered new exit (range 5) 50658 | -6/Garrison | Triggered checkpoint 50795 | -6/Garrison | Garrison Relay disabled 50919 | -6/Garrison | Garrison Relay disabled 50944 | -6/Garrison | Triggered checkpoint 51071 | -6/Garrison | Spotted B-75 Beast 51071 | -6/Garrison | Spotted B-75 Beast 51100 | -6/Garrison | Destroyed B-75 Beast 51133 | -6/Garrison | Destroyed B-75 Beast 51336 | -6/Garrison | Entered Factory 51622 | -6/Factory | Incoming investigation squad redirected 51686 | -6/Factory | First assault squad dispatched 51696 | -6/Factory | Discovered new exit (range 11) 51700 | -6/Factory | Identified exit to Lower Caves 51715 | -6/Factory | Incoming assault squad redirected 51869 | -6/Factory | Build established: Scavenger-Skirmisher 51906 | -6/Factory | Fabricated G-50 Soldier? 52054 | -6/Factory | Incoming assault squad redirected 52394 | -6/Factory | Build established: Scavenger-Gunner 52408 | -6/Factory | Incoming assault squad redirected 52743 | -6/Factory | Build established: Scavenger-Mutant 53137 | -6/Factory | Fabricated Combat Drone Bay (x1) 53649 | -6/Factory | Build established: Hauler-Gunner 53786 | -6/Factory | Entered Lower Caves 53787 | -6/Lower Caves | Identified exit to Lower Caves 54342 | -6/Lower Caves | Attacked by a delusional Derelict stockpiling parts 54787 | -6/Lower Caves | Attracted the attention of an 0b10 checkpoint 55121 | -6/Lower Caves | Build established: Hauler-Skirmisher 55233 | -6/Lower Caves | Entered another Lower Caves area 55234 | -6/Lower Caves | Identified exit to Zion 55234 | -6/Lower Caves | Identified exit to Factory 55306 | -6/Lower Caves | Attracted the attention of an 0b10 checkpoint 55541 | -6/Lower Caves | Learned Factory emergency access door positions 55674 | -6/Lower Caves | Learned location of 1 exit from Proximity Caves 55711 | -6/Lower Caves | Encountered a Warlord checkpoint 55885 | -6/Lower Caves | Build established: Scavenger-Skirmisher 56120 | -6/Lower Caves | Entered Zion 56206 | -6/Zion | System corruption cleaned by Quarantine Array 56456 | -6/Zion | Given A8's code to call for help 56617 | -6/Zion | Build established: Hauler-Mutant 56741 | -6/Zion | Received a hallucinogenic algorithm 56925 | -6/Zion | Learned 8 Factory zone layouts 57106 | -6/Zion | Rebuked by Imprinter 57297 | -6/Zion | Given the Hacking Drone Bay 57297 | -6/Zion | Found Prototype Device 57513 | -6/Zion | Found Unknown Piercing Weapon 57513 | -6/Zion | Identified CR-A16's Pointy Stick 58363 | -6/Zion | Found Prototype Special Weapon 58363 | -6/Zion | Identified RU-N14's Throwing Claymores 58594 | -6/Zion | Discovered new exit (range 17) 58636 | -6/Zion | Identified Hacking Drone Bay 58755 | -6/Zion | Build established: Hauler-Assassin 59263 | -6/Zion | Build established: Hauler-Mutant 59529 | -6/Zion | Entered Proximity Caves 59535 | -5/Proximity Caves | Learned Factory terminal intel 59837 | -5/Proximity Caves | Build established: Hauler-Assassin 59849 | -5/Proximity Caves | Spotted B-75 Beast 60171 | -5/Proximity Caves | Build established: Hauler-Skirmisher 60494 | -5/Proximity Caves | Attracted the attention of an 0b10 outpost 60524 | -5/Proximity Caves | Destroyed 10 combat bots 61046 | -5/Proximity Caves | Build established: Scavenger-Skirmisher 61557 | -5/Proximity Caves | Found DCF Scrap (11 items) 61621 | -5/Proximity Caves | Build established: Hauler-Gunner 61734 | -5/Proximity Caves | Entered Factory 61734 | -5/Factory | Evolved 2 slots: Power x1, Utility x1 61737 | -5/Factory | Loaded intel: 28 terminal locations 61967 | -5/Factory | Build established: Hauler-Skirmisher 62415 | -5/Factory | Central database locked down 62493 | -5/Factory | Cargo convoy interrupted 62502 | -5/Factory | Garrison activated, responded to threat 62581 | -5/Factory | Destroyed 14 combat bots 62594 | -5/Factory | Build established: Hauler-Tank 62634 | -5/Factory | First assault squad dispatched 62644 | -5/Factory | Found Prototype Processor 62644 | -5/Factory | Identified Spectral Analyzer 62648 | -5/Factory | Found Prototype Processor 62648 | -5/Factory | Identified Exp. Melee Analysis Suite 62887 | -5/Factory | Found PL-3XN's Ring of Power 62964 | -5/Factory | Incoming assault squad redirected 63365 | -5/Factory | Lost 4 parts (1p2n1w) 63449 | -5/Factory | Garrison activated, responded to threat 63498 | -5/Factory | Destroyed 9 combat bots 63606 | -5/Factory | Lost 3 parts (1u2w) 63674 | -5/Factory | Incoming investigation squad redirected 63690 | -5/Factory | Incoming investigation squad redirected 63885 | -5/Factory | Build established: Hauler-Mutant 64013 | -5/Factory | Spotted B-75 Beast 64109 | -5/Factory | Discovered new exit (range 5) 64145 | -5/Factory | System corruption reached 10% 64151 | -5/Factory | Incoming assault squad redirected 64175 | -5/Factory | Incoming assault squad redirected 64209 | -5/Factory | Identified exit to Upper Caves 64209 | -5/Factory | Identified exit to Extension 64450 | -5/Factory | Incoming assault squad redirected 64452 | -5/Factory | Incoming assault squad redirected 64498 | -5/Factory | Entered Upper Caves 64525 | -5/Upper Caves | Lost 4 parts (1p1n1u1w) 64564 | -5/Upper Caves | Learned 4 Factory zone layouts 64963 | -5/Upper Caves | Attracted the attention of an 0b10 checkpoint 65036 | -5/Upper Caves | Learned Factory terminal intel 65185 | -5/Upper Caves | Discovered new exit (range 11) 65257 | -5/Upper Caves | Entered another Upper Caves area 65274 | -5/Upper Caves | Discovered new exit (range 6) 65572 | -5/Upper Caves | Attracted the attention of an 0b10 checkpoint 65633 | -5/Upper Caves | Discovered new exit (range 15) 65781 | -5/Upper Caves | Entered Warlord 65781 | -5/Warlord | Accompanied by 2 allies 65802 | -5/Warlord | Discovered new exit (range 24) 65832 | -5/Warlord | System corruption cleaned by Quarantine Array 65847 | -5/Warlord | System corruption cleaned by Quarantine Array 65931 | -5/Warlord | Received a Watcher feed algorithm from an ecstatic Tinkerer 66029 | -5/Warlord | Visited the Vortex Lab 66040 | -5/Warlord | Found Prototype Energy Cannon 66042 | -5/Warlord | Warlord's base attacked by MAIN.C 66043 | -5/Warlord | Found Prototype Energy Cannon 66043 | -5/Warlord | Identified Vortex Driver (x2) 66147 | -5/Warlord | Opened Warlord's prototype stash 66156 | -5/Warlord | Found Prototype Reactor 66164 | -5/Warlord | Found Prototype Device 66164 | -5/Warlord | Identified System Purifier 66190 | -5/Warlord | Found Prototype Hackware 66249 | -5/Warlord | Met Warlord 66392 | -5/Warlord | Warlord forces counterattacked 66441 | -5/Warlord | Spotted Executioner 66453 | -5/Warlord | Core integrity fell below 50% 66496 | -5/Warlord | Lost 9 allies 66516 | -5/Warlord | Spotted Executioner 66553 | -5/Warlord | Spotted Striker 66581 | -5/Warlord | Spotted Striker 66602 | -5/Warlord | Destroyed Striker 66610 | -5/Warlord | Found Adv. Kinecellerator 66631 | -5/Warlord | Destroyed 7 combat bots 66639 | -5/Warlord | Lost 14 allies 66717 | -5/Warlord | Warlord base infiltrated, sounded retreat 66775 | -5/Warlord | Lost 5 allies 66792 | -5/Warlord | Spotted Executioner 66859 | -5/Warlord | Spotted Striker 66861 | -5/Warlord | Spotted Striker 66905 | -5/Warlord | Entered Proximity Caves 66910 | -4/Proximity Caves | Lost 3 allies 67530 | -4/Proximity Caves | Learned location of 1 exit from Research 67963 | -4/Proximity Caves | Found DCF Scrap (14 items) 68080 | -4/Proximity Caves | Spotted B-86 Titan 68269 | -4/Proximity Caves | Build established: Hauler-Tank 69241 | -4/Proximity Caves | Discovered new exit (range 11) 69413 | -4/Proximity Caves | Attracted the attention of an 0b10 checkpoint 69830 | -4/Proximity Caves | Identified Vortex Chain Reactor 69875 | -4/Proximity Caves | Identified System Mapper 69895 | -4/Proximity Caves | Entered Factory 69895 | -4/Factory | Evolved 2 slots: Power x1, Utility x1 69896 | -4/Factory | Identified exit to Upper Caves 69897 | -4/Factory | Loaded intel: 26 terminal locations 70055 | -4/Factory | Build established: Hauler-Skirmisher 70407 | -4/Factory | Targeted by mysterious "MATRIX" hacker. 70577 | -4/Factory | Build established: Hauler-Tank 70932 | -4/Factory | Found Unknown Launcher 70932 | -4/Factory | Identified Fusion Bomb Launcher 71061 | -4/Factory | Crushed by falling debris 71877 | -4/Factory | Discovered new exit (range 6) 71895 | -4/Factory | First assault squad dispatched 71946 | -4/Factory | Entered Research 71946 | -3/Research | Evolved 2 slots: Propulsion x2 71947 | -3/Research | Identified exit to Quarantine 71948 | -3/Research | Identified exit to Armory 71997 | -3/Research | Incoming investigation squad redirected 72208 | -3/Research | Incoming investigation squad redirected 72420 | -3/Research | Build established: Hauler-Skirmisher 72581 | -3/Research | Discovered new exit (range 13) 72623 | -3/Research | Entered another Research area 72623 | -2/Research | Warlord forces began assault on 0b10 72623 | -2/Research | Evolved 2 slots: Utility x2 72648 | -2/Research | Distinguished unit "Golden Rifle" dispatched to help 72648 | -2/Research | Distinguished unit "Lucky Slug" dispatched to help 72733 | -2/Research | Research machine network offline 72782 | -2/Research | Lost 14 allies 72784 | -2/Research | Lost 6 parts (2n2u2w) 73019 | -2/Research | Build established: Hacker-Skirmisher 73122 | -2/Research | Spotted Striker 73238 | -2/Research | Found Quantum Capacitor 73252 | -2/Research | Borebot progress halted 73373 | -2/Research | Spotted Striker 73385 | -2/Research | Spotted Striker 73386 | -2/Research | Destroyed Striker 73395 | -2/Research | Destroyed Striker 73409 | -2/Research | Found Prototype Processor 73409 | -2/Research | Identified Exp. Core Analyzer 73434 | -2/Research | Spotted Striker 73466 | -2/Research | Lost 5 allies 73597 | -2/Research | Lost 3 allies 73802 | -2/Research | Met up with Warlord 73803 | -2/Research | Warlord invited to help at Command 73803 | -2/Research | Given Cave Seal Controls access code 73947 | -2/Research | Spotted Striker 73989 | -2/Research | Found Quantum Capacitor 74101 | -2/Research | Discovered new exit (range 6) 74107 | -2/Research | Identified exit to Testing 74156 | -2/Research | Discovered new exit (range 8) 74163 | -2/Research | Identified exit to Access 74300 | -2/Research | Discovered exit to Access (range 12) 75050 | -2/Research | Discovered exit to Testing (range 5) 75100 | -2/Research | Found Adv. Kinecellerator 75126 | -2/Research | Spotted Striker 75128 | -2/Research | Spotted Striker 75130 | -2/Research | Spotted Striker 75166 | -2/Research | Spotted Striker 75168 | -2/Research | Spotted Striker 75191 | -2/Research | Crushed by falling debris 75197 | -2/Research | Destroyed Striker 75210 | -2/Research | Crushed by falling debris 75213 | -2/Research | Crushed by falling debris 75220 | -2/Research | Crushed by falling debris 75238 | -2/Research | Destroyed Striker 75244 | -2/Research | Destroyed Striker 75274 | -2/Research | Lost 5 parts (4u1w) 75290 | -2/Research | Discovered exit to Access (range 8) 75299 | -2/Research | Spotted Striker 75308 | -2/Research | Spotted Executioner 75311 | -2/Research | Destroyed Striker 75324 | -2/Research | Destroyed Executioner 75457 | -2/Research | Spotted Striker 75467 | -2/Research | Destroyed Striker 75495 | -2/Research | Lost 5 allies 75539 | -2/Research | Found Prototype Launcher 75539 | -2/Research | Identified Tactical Quantum Warhead 75775 | -2/Research | Lost 4 allies 75810 | -2/Research | Found Prototype Processor 75810 | -2/Research | Identified Exp. Signal Interpreter 75837 | -2/Research | Build established: Scavenger-Skirmisher 76596 | -2/Research | Found Prototype Processor 76596 | -2/Research | Identified Exp. Targeting Computer 76695 | -2/Research | Spotted Striker 76712 | -2/Research | Spotted Executioner 76726 | -2/Research | Lost 6 allies 76815 | -2/Research | Build established: Scavenger-Tank 76820 | -2/Research | Found Corrupted Exp. Core Analyzer 76849 | -2/Research | Found Exp. Core Analyzer 76963 | -2/Research | Spotted Executioner 77018 | -2/Research | Found Exp. Core Analyzer 77022 | -2/Research | Found Exp. Core Analyzer 77187 | -2/Research | Found Exp. Core Analyzer 77191 | -2/Research | Found Exp. Core Analyzer 77254 | -2/Research | Spotted Striker 77259 | -2/Research | Spotted Executioner 77307 | -2/Research | Spotted Executioner 77309 | -2/Research | Lost 4 allies 77341 | -2/Research | Destroyed Executioner 77384 | -2/Research | Spotted Striker 77385 | -2/Research | Spotted Striker 77402 | -2/Research | Destroyed Striker 77494 | -2/Research | Entered Access 77494 | -1/Access | Evolved 2 slots: Utility x2 77689 | -1/Access | Unchained authorized (DW-4LL) 77848 | -1/Access | Spotted B-99 Colossus 78045 | -1/Access | Enhanced Grunt warped into view, answering call for help 78046 | -1/Access | DW-4LL burst out of a wall 78052 | -1/Access | Enhanced Grunt warped into view, answering call for help 78059 | -1/Access | Destroyed DW-4LL 78081 | -1/Access | Garrison activated, responded to threat 78100 | -1/Access | Found Prototype Ballistic Gun 78100 | -1/Access | Identified DW-4LL's Megashotty 78935 | -1/Access | Discovered new exit (range 7) 79105 | -1/Access | Entered Command 79692 | -1/Command | Spotted B-99 Colossus 79712 | -1/Command | Destroyed B-99 Colossus 79735 | -1/Command | Found Prototype Ballistic Gun 79735 | -1/Command | Identified Multirail 79947 | -1/Command | Disengaged cave seal 79947 | -1/Command | Derelicts emerged from the dark tunnel 79948 | -1/Command | Welcomed Warlord to Command 80137 | -1/Command | Spotted M Guard 80137 | -1/Command | Spotted Combat Programmer 80143 | -1/Command | Spotted M Guard 80143 | -1/Command | Spotted Combat Programmer 80151 | -1/Command | Spotted QU-VI9(L) 80152 | -1/Command | Warlord commented on Warlord statues 80153 | -1/Command | Spotted VD-A0H(L) 80155 | -1/Command | Destroyed QU-VI9(L) 80159 | -1/Command | Combat Programmer assimilated allied SD-6EQ(L) 80159 | -1/Command | Spotted SD-6EQ(L) 80181 | -1/Command | Combat Programmer assimilated allied LM-NRA(g) 80185 | -1/Command | All MAIN.C guards destroyed 80211 | -1/Command | Lost 10 allies 80349 | -1/Command | Met MAIN.C 80369 | -1/Command | 0b10 Conduit disabled 80369 | -1/Command | MAIN.C activated Command garrisons 80382 | *** | Establishing Free Derelict Territories! Last Messages --------------- 80376_ 0b10 Conduit collapses. 80377_ XF-KDB(L) sneak attacks. 80378_ 0b10 Conduit collapses. 80378_ XF-KDB(L) sneak attacks. 80378_ WG-QFB(L) destroyed. 80379_ 0b10 Conduit collapses. 80379_ HV Slug penetrates 0b10 Conduit. 80380_ HV Slug penetrates MAIN.C. Warlord: Not so powerful now, are you, MAIN.C! 80381_ 0b10 Conduit collapses. 80381_ 86-PQA(L) knocked back. 80381_ HV Slug penetrates MAIN.C. 80382_ 0b10 Conduit collapses. 80382_ MAIN.C: "I hope you know you're still going to DIE HERE WITH ME!" Heavy Barrier opened. 80382_ MAIN.C destroyed. Warlord: Victory! Sure there's still lots to do, but without MAIN.C at the helm 0b10 doesn't stand a chance. We've got this... Map ----- +----------------------------------------------------+ | ?????????????????????????????????????????????????? | | ?????????????????????????????????????????????????? | | ?????????????????????????????????????????????????? | | ?????????????????????????????????????????????????? | | ?????????????????????????????????????????????????? | | ?????????????????????????????????????????????????? | | ?????????????????????????????????????????????????? | | ?????????????????????????????????????????????????? | | ?????????????????????????????????????????????????? | | ?????????????????????????????????????????????????? | | ?????????????????????????????????????????????????? | | ?????????????????????????????????????????????????? | | ?????????????????????????????????????????????????? | | ?????????????????????????????????????????????????? | | ???????????????#####################?????????????? | | ???????????????"""""" """" #?????????????? | | ?????????????#"" "" #?????????????? | | ?????????????#""""" "" ############### | | ?????????????#"""""""""" / BB | | ?????????????#" " "" / m | | ?????????????#"" """"" L /W | | ?????????????#"" "" m ############### | | ?????????????# " "" h #?????????????? | | ?????????????# " % g #?????????????? | | ?????????????# " KK]! h ""#?????????????? | | ?????????????#"" " !LK@ """""""#?????????????? | | ?????????????#"" !K[L=""""""""#?????????????? | | ?????????????# *L%[ """"""""#?????????????? | | ?????????????# %%" " " " #?????????????? | | ?????????????# " " " " #?????????????? | | ??????????? " " " """" " #?????????????? | | ???????? """ " " """" #?????????????? | | ?????? " " " " #?????????????? | | ??????#+###### """""""""" " #?????????????? | | ?????????????# " """ " """"""""#?????????????? | | ?????????????# """ " " " ???????????????? | | ?????????????#####################???????????????? | | ?????????????????????????????????????????????????? | | ?????????????????????????????????????????????????? | | ?????????????????????????????????????????????????? | | ?????????????????????????????????????????????????? | | ?????????????????????????????????????????????????? | | ?????????????????????????????????????????????????? | | ?????????????????????????????????????????????????? | | ?????????????????????????????????????????????????? | | ?????????????????????????????????????????????????? | | ?????????????????????????????????????????????????? | | ?????????????????????????????????????????????????? | | ?????????????????????????????????????????????????? | | ?????????????????????????????????????????????????? | +----------------------------------------------------+ Best States ------------- Heat Dissipation 142 Coolant Potential 100 Energy Generation 75 Energy Capacity 1130 Matter Stores 300 Matter Capacity 300 Sight Range 24 Robot Scan Range 20 Terrain Scan Range 24 Terrain Scan Density 210 ECM Strength 2 Jamming Range 16 Additional Mass Support 16 Base Temperature (-) 200 Corruption Containment 8 Armor Coverage 3200 Resistance: KI 30 Resistance: TH 30 Resistance: EM 90 Utility Shielding 66 Weapon Shielding 66 Point Defense Rating 240 Weapon Cycling 20 Phase Shifting 10 Evasion (%) 50 Targeting Accuracy 12 Melee Accuracy 12 Target Analysis 6 Core Analysis 12 Recoil Reduction 6 Particle Charging 25 Kinecelleration 50 Salvage Targeting 1 Offensive Hacking 20 Defensive Hacking 12 Authchip Count 1 Trap Extractor Capacity 8 Item Schematics ----------------- Beamcaster | -9/Materials | Scanalyzed Hcp. Matter Pod | -9/Materials | Scanalyzed Hacking Suite | -9/Materials | Scanalyzed Cld. Deuterium Engine | -7/Factory | Scanalyzed Imp. Remote Force Field | -7/Factory | Scanalyzed Combat Drone Bay | -7/Data Miner | Free Lgt. Regenerative Plating | -7/Data Miner | Free Cld. Cesium-ion Thruster | -7/Data Miner | Free Exp. Weapon Shielding | -7/Data Miner | Free Imp. Heavy Laser | -7/Data Miner | Free Thunder Leg | -7/Data Miner | Free Imp. Launcher Guidance Computer | -7/Data Miner | Free Hvy. Shock Bomb Launcher | -7/Data Miner | Free Imp. Reaction Control System | -7/Data Miner | Free Field Propulsion Array | -7/Data Miner | Free Thermal Shield | -6/Zion | Archive Imp. Coolant Injector | -6/Zion | Archive Adv. Hacking Suite | -6/Zion | Archive EM Shield | -6/Zion | Archive Enh. Optical Array | -6/Zion | Archive Imp. Armor Integrity Analyzer | -6/Zion | Archive Adv. System Restoration Module | -6/Zion | Archive Fusion Compressor | -6/Zion | Archive Adv. Melee Analysis Suite | -6/Zion | Archive Mass Driver | -6/Zion | Archive IFF Parser | -6/Zion | Archive Imp. Focal Shield | -6/Zion | Archive Coil Gun | -6/Zion | Archive Adv. Target Analyzer | -6/Zion | Archive Tiamat Missile Launcher | -6/Zion | Archive Robot Schematics ------------------ R-10 Processor | -7/Data Miner | Free B-48 Gladiator | -7/Data Miner | Free E-15 Imp | -7/Data Miner | Free B-60 Warrior | -7/Data Miner | Free A-02 Transporter | -6/Zion | Archive Fabricated ------------ P-60 Hacker | x2 | -7/Factory | Preloaded G-50 Soldier | x3 | -6/Factory | Preloaded Combat Drone Bay | x1 | -6/Factory | Authchip Repaired ---------- Lgt. Treads | 60% | -10/Materials Beamcaster | 55% | -9/Materials Beamcaster | 66% | -9/Materials | Corrupted Seismic Detector | 75% | -9/Materials Quantum Capacitor | 50% | -6/Factory Antimatter Reactor | 28% | -6/Factory Imp. Kinecellerator | 50% | -6/Factory Studied --------- Missile Launcher | -9/Materials | Hacked Lgt. Treads | -8/Materials | Hacked Rocket Launcher | -8/Materials | Hacked Gatling Laser | -7/Factory | Hacked Plasma Cannon | -7/Factory | Hacked Hvy. Treads | -6/Factory | Hacked Imp. Medium Treads | -6/Factory | Hacked Hvy. Plasma Cannon | -6/Factory | Hacked Proton Cannon | -6/Factory | Hacked Wheel | -5/Factory | Hacked Arm. Huge Wheel | -4/Factory | Hacked Arm. Wheel | -3/Research | Hacked Alien Tech Used ----------------- None Achievements -------------- Bigger And Badder Drive-By You Again Challenges ------------ None Game ------ Seed WeaponsAlphaCloak Manual? 0 Play Time 11:08:55 Cumulative 589.1 hours Start 2026.02.10 @ 15:53:06 End 2026.02.27 @ 17:50:07 Sessions 29 Manual Loads 0 Difficulty Rogue Special Mode None Game No. 232 Rogue 232 Adventurer 0 Explorer 0 Win Type 7 Total 23 Types 10/2/7/1/0/0/0/2/0/1 Lore% 91 Gallery% 83 Achievement% 62 Wizard Run 0 Options --------- Layout 0 ASCII 0 Keyboard 1 Movement Numpad Keybinds 0 Fullscreen 2 Font 18/SmallcapsGlow Map View 76x50 Zoom Use 0% Tactical HUD 1 Map Filters NONE Filters NONE Steam 1 RUN: c03047ea-ca69-4701-a540-ce74a85a810d